Workbook

Sheet INTRO
B2: Formulaire de Rapport Commun v.3.1
B4: Le but de ce formulaire de rapport commun - disponible sous forme de fichier Excel - est de mettre à disposition des autorités sanitaires nationales et des gestionnaires de données un outil standardisé qui réponde aux défis, facilite l'intégration et par conséquent contribue à améliorer la gestion de programme. Ce formulaire tend à standardiser le rapport de résultats des programmes nationaux, améliore la disponibilité et la coordination des données de chimioprévention à travers les Bureaux des Régions de l'Organisation mondiale de la Santé. Les autorités nationales sont priées de compléter ce formulaire et de le soumettre à l'Organisation mondiale de la Santé avant le 15 août de l'année en cours pour rapporter les données des activités de chimioprévention mises en oeuvre l'année précédente.
B6: Structure de l'application (feuilles de travail) :
B8: INTRO | C8: Cette feuille contient des instructions pour compléter le formulaire de rapport commun et des informations sur le statut de la chimioprévention pour les maladies d'endémie du pays.
B9: COUNTRY_INFO | C9: Cette feuille contient des informations sur la structure administrative du pays, la population par groupe d'âge, le statut d'endémicité pour chaque maladie, la population devant être traitée par chimioprévention, les interventions prévues et les interventions mises en oeuvre.
B10: MDA1, MDA2, MDA3, T1, T2 et T3 | C10: Ces feuilles contiennent des informations sur l'endémicité des districts ciblés pour le traitement aux médicaments spécifiques pour la chimioprévention, les plans de traitement, et le nombre de personnes traitées par groupe d'âge.
B11: DISTRICT | C11: Cette feuille contient un résumé sur les personnes traitées, par maladie, au niveau de mise en oeuvre. Si les données par genre (sexe) sont disponibles, merci de les saisir.
B12: SUMMARY | C12: Cette feuille contient un résumé sur les personnes traitées, par maladie et par type d'intervention de chimioprévention. Avant de générer le rapport (exécuter macro), veuillez sélectionner la maladie pour laquelle vous souhaitez un rapport. Veuillez suivre le même processus pour générer les divers rapports. Cette feuille doit être imprimée et soumise comme formulaire de rapport commun (voir les instructions pour la soumission du formulaire sous la feuille SUMMARY).
B14: Instructions pour la saisie des données
B16: La plupart des cellules des feuilles de travail mentionnées ci-dessus contiennent des formules calculées automatiquement en fonction du protocole de traitement recommandé par l'OMS pour chaque maladie. Voir : http://www.who.int/neglected_diseases/preventive_chemotherapy/pct_manual/en/index.html
B18: Veuillez entrer vos données dans les cellules en fonction de leur code de couleur :
C20: Blanc - la cellule n'est pas protégée. Veuillez entrer la valeur de l'indicateur demandé.
C22: Jaune - la cellule est protégée et inclut le nom de l'indicateur. Aucune entrée de données requise.
C24: Orange - la cellule n'est pas protégée et contient un menu déroulant. Veuillez sélectionner la valeur dans le menu déroulant.
C27: Vert - la cellule n'est pas protégée et contient des formules. Veuillez changer la valeur indiquée uniquement si vos données sont différentes de celles calculées automatiquement.
C30: Bleu - la cellule est protégée et contient des formules. Aucune entrée de données requise.
B32: Données pays
B34: PAYS | E34: STP
B36: Année de rapport des données | E36: 2018
B38: Le pays est-il endémique à la filariose lymphatique (FL) ? | E38: Endémique
B40: Le pays est-il endémique à l'onchocercose (ONCHO) ? | E40: Non endémique
B42: Le pays est-il endémique aux géohelminthiases (STH) ? | E42: Endémique
B44: Le pays est-il endémique à la schistosomiase (SCH) ? | E44: Endémique
B46: Combien d'unités administratives compte le pays ? | E46: 7
B47: Si les données démographiques par groupe d'âge ne sont pas disponibles au second niveau administratif, veuillez entrer la proportion (%) de population, par groupe d'âge, du pays. Si les données sont disponibles, veuillez laisser les cellules vierges.
B48: 1-4 ans | C48: Enfants d'âge pré-scolaire (EAPréS) | E48: 0.123
B49: 5-14 ans | C49: Enfants d'âge scolaire (EAS) | E49: 0.262
B50: 15 ans et plus | C50: Adultes | E50: 0.583

Sheet COUNTRY_INFO
A1: INFORMATIONS PAYS
A2: Structure administrative, population par groupe d'âge, statut d'endémicité, interventions planifiées et interventions mises en oeuvre
A4: TOTAL | D4: =SUM(D$9:D$1000) -> 201784 | E4: =SUM(E$9:E$1000) -> 24819 | F4: =SUM(F$9:F$1000) -> 52868 | G4: =SUM(G$9:G$1000) -> 117642 | L4: =SUM(L$9:L$1000) -> 201784 | M4: =SUM(M$9:M$1000) -> 0 | N4: =SUM(N$9:N$1000) -> 77687 | O4: =SUM(O$9:O$1000) -> 38154.74
A6: Structure administrative du pays | D6: Population | H6: Endémicité | L6: Population nécessitant la CP | P6: Nombre de tournées de traitement prévues pour l'année | T6: Mise en oeuvre de la chimioprévention | V6: Cliquer ci-dessous pour voir la stratégie recommandée
A7: Pays | B7: Région/Département | C7: District | D7: Total | E7: EAPréS | F7: EAS | G7: Adultes | H7: FL | I7: Oncho | J7: STH | K7: SCH | L7: FL | M7: Oncho | N7: STH | O7: SCH | P7: FL | Q7: Oncho | R7: STH | S7: SCH | T7: TOURNEE 1 | U7: TOURNEE 2 | X7: IU_ID | Y7: IU_Name
A9: =IF(INTRO!$E$34<>0,INTRO!$E$34,"") -> STP | B9: ST | C9: Agua Grande | D9: 77689 | E9: =IF(INTRO!$E$48="","",ROUND($D9*INTRO!$E$48,0)) -> 9556 | F9: =IF(INTRO!$E$49="","",ROUND($D9*INTRO!$E$49,0)) -> 20355 | G9: =IF(INTRO!$E$50="","",ROUND($D9*INTRO!$E$50,0)) -> 45293 | H9: 1 | I9: 0 | J9: 3 | K9: 2 | L9: =IF(INTRO!$E$38="Endémique", IF($H9>0, IF($H9=4,"Inconnu", IF($H9=99,"Interrompu", $D9)), 0),"Non requis") -> 77689 | M9: =IF(INTRO!$E$40="Endémique", IF($I9>0, IF($I9=4,"Inconnu",IF($I9=99,"Interrompu", $D9)), 0),"Non requis") -> Non requis | N9: =IF(INTRO!$E$42="Endémique", IF(AND($J9>1,$J9<5), IF($J9=4, "Inconnu", E9+F9), 0),"Non requis") -> 29911 | O9: =IF(INTRO!$E$44="Endémique", IF(AND($K9>0,$K9<5), IF($K9=4,"Inconnu", IF($K9=1, $F9*0.33, IF($K9=2, $F9*0.5+$G9*0.2, SUM(F9:G9)))), 0),"Non requis") -> 19236.1 | P9: 1 | R9: 2 | S9: 1 | T9: MDA2 (DEC+ALB) | U9: T1 (PZQ+ALB/MBD) | X9: 39143 | Y9: Agua Grande | AA9: =Y9=C9 -> TRUE
A10: =IF(INTRO!$E$34<>0,INTRO!$E$34,"") -> STP | B10: ST | C10: Me-zochi | D10: 50821 | E10: =IF(INTRO!$E$48="","",ROUND($D10*INTRO!$E$48,0)) -> 6251 | F10: =IF(INTRO!$E$49="","",ROUND($D10*INTRO!$E$49,0)) -> 13315 | G10: =IF(INTRO!$E$50="","",ROUND($D10*INTRO!$E$50,0)) -> 29629 | H10: 1 | I10: 0 | J10: 3 | K10: 2 | L10: =IF(INTRO!$E$38="Endémique", IF($H10>0, IF($H10=4,"Inconnu", IF($H10=99,"Interrompu", $D10)), 0),"Non requis") -> 50821 | M10: =IF(INTRO!$E$40="Endémique", IF($I10>0, IF($I10=4,"Inconnu",IF($I10=99,"Interrompu", $D10)), 0),"Non requis") -> Non requis | N10: =IF(INTRO!$E$42="Endémique", IF(AND($J10>1,$J10<5), IF($J10=4, "Inconnu", E10+F10), 0),"Non requis") -> 19566 | O10: =IF(INTRO!$E$44="Endémique", IF(AND($K10>0,$K10<5), IF($K10=4,"Inconnu", IF($K10=1, $F10*0.33, IF($K10=2, $F10*0.5+$G10*0.2, SUM(F10:G10)))), 0),"Non requis") -> 12583.3 | P10: 1 | R10: 2 | S10: 1 | T10: MDA2 (DEC+ALB) | U10: T1 (PZQ+ALB/MBD) | X10: 39148 | Y10: Me-zochi | AA10: =Y10=C10 -> TRUE
A11: =IF(INTRO!$E$34<>0,INTRO!$E$34,"") -> STP | B11: ST | C11: Lobata | D11: 21988 | E11: =IF(INTRO!$E$48="","",ROUND($D11*INTRO!$E$48,0)) -> 2705 | F11: =IF(INTRO!$E$49="","",ROUND($D11*INTRO!$E$49,0)) -> 5761 | G11: =IF(INTRO!$E$50="","",ROUND($D11*INTRO!$E$50,0)) -> 12819 | H11: 1 | I11: 0 | J11: 3 | K11: 1 | L11: =IF(INTRO!$E$38="Endémique", IF($H11>0, IF($H11=4,"Inconnu", IF($H11=99,"Interrompu", $D11)), 0),"Non requis") -> 21988 | M11: =IF(INTRO!$E$40="Endémique", IF($I11>0, IF($I11=4,"Inconnu",IF($I11=99,"Interrompu", $D11)), 0),"Non requis") -> Non requis | N11: =IF(INTRO!$E$42="Endémique", IF(AND($J11>1,$J11<5), IF($J11=4, "Inconnu", E11+F11), 0),"Non requis") -> 8466 | O11: =IF(INTRO!$E$44="Endémique", IF(AND($K11>0,$K11<5), IF($K11=4,"Inconnu", IF($K11=1, $F11*0.33, IF($K11=2, $F11*0.5+$G11*0.2, SUM(F11:G11)))), 0),"Non requis") -> 1901.13 | P11: 1 | R11: 2 | S11: 0 | T11: MDA2 (DEC+ALB) | U11: T3 (ALB/MBD) | X11: 39147 | Y11: Lobata | AA11: TRUE
A12: =IF(INTRO!$E$34<>0,INTRO!$E$34,"") -> STP | B12: ST | C12: Cantagalo | D12: 19394 | E12: =IF(INTRO!$E$48="","",ROUND($D12*INTRO!$E$48,0)) -> 2385 | F12: =IF(INTRO!$E$49="","",ROUND($D12*INTRO!$E$49,0)) -> 5081 | G12: =IF(INTRO!$E$50="","",ROUND($D12*INTRO!$E$50,0)) -> 11307 | H12: 1 | I12: 0 | J12: 3 | K12: 1 | L12: =IF(INTRO!$E$38="Endémique", IF($H12>0, IF($H12=4,"Inconnu", IF($H12=99,"Interrompu", $D12)), 0),"Non requis") -> 19394 | M12: =IF(INTRO!$E$40="Endémique", IF($I12>0, IF($I12=4,"Inconnu",IF($I12=99,"Interrompu", $D12)), 0),"Non requis") -> Non requis | N12: =IF(INTRO!$E$42="Endémique", IF(AND($J12>1,$J12<5), IF($J12=4, "Inconnu", E12+F12), 0),"Non requis") -> 7466 | O12: =IF(INTRO!$E$44="Endémique", IF(AND($K12>0,$K12<5), IF($K12=4,"Inconnu", IF($K12=1, $F12*0.33, IF($K12=2, $F12*0.5+$G12*0.2, SUM(F12:G12)))), 0),"Non requis") -> 1676.73 | P12: 1 | R12: 2 | S12: 0 | T12: MDA2 (DEC+ALB) | U12: T3 (ALB/MBD) | X12: 39144 | Y12: Cantagalo | AA12: TRUE
A13: =IF(INTRO!$E$34<>0,INTRO!$E$34,"") -> STP | B13: ST | C13: Lemba | D13: 16272 | E13: =IF(INTRO!$E$48="","",ROUND($D13*INTRO!$E$48,0)) -> 2001 | F13: =IF(INTRO!$E$49="","",ROUND($D13*INTRO!$E$49,0)) -> 4263 | G13: =IF(INTRO!$E$50="","",ROUND($D13*INTRO!$E$50,0)) -> 9487 | H13: 1 | I13: 0 | J13: 3 | K13: 1 | L13: =IF(INTRO!$E$38="Endémique", IF($H13>0, IF($H13=4,"Inconnu", IF($H13=99,"Interrompu", $D13)), 0),"Non requis") -> 16272 | M13: =IF(INTRO!$E$40="Endémique", IF($I13>0, IF($I13=4,"Inconnu",IF($I13=99,"Interrompu", $D13)), 0),"Non requis") -> Non requis | N13: =IF(INTRO!$E$42="Endémique", IF(AND($J13>1,$J13<5), IF($J13=4, "Inconnu", E13+F13), 0),"Non requis") -> 6264 | O13: =IF(INTRO!$E$44="Endémique", IF(AND($K13>0,$K13<5), IF($K13=4,"Inconnu", IF($K13=1, $F13*0.33, IF($K13=2, $F13*0.5+$G13*0.2, SUM(F13:G13)))), 0),"Non requis") -> 1406.79 | P13: 1 | R13: 2 | S13: 0 | T13: MDA2 (DEC+ALB) | U13: T3 (ALB/MBD) | X13: 39146 | Y13: Lemba | AA13: TRUE
A14: =IF(INTRO!$E$34<>0,INTRO!$E$34,"") -> STP | B14: ST | C14: Cauè | D14: 7202 | E14: =IF(INTRO!$E$48="","",ROUND($D14*INTRO!$E$48,0)) -> 886 | F14: =IF(INTRO!$E$49="","",ROUND($D14*INTRO!$E$49,0)) -> 1887 | G14: =IF(INTRO!$E$50="","",ROUND($D14*INTRO!$E$50,0)) -> 4199 | H14: 1 | I14: 0 | J14: 3 | K14: 1 | L14: =IF(INTRO!$E$38="Endémique", IF($H14>0, IF($H14=4,"Inconnu", IF($H14=99,"Interrompu", $D14)), 0),"Non requis") -> 7202 | M14: =IF(INTRO!$E$40="Endémique", IF($I14>0, IF($I14=4,"Inconnu",IF($I14=99,"Interrompu", $D14)), 0),"Non requis") -> Non requis | N14: =IF(INTRO!$E$42="Endémique", IF(AND($J14>1,$J14<5), IF($J14=4, "Inconnu", E14+F14), 0),"Non requis") -> 2773 | O14: =IF(INTRO!$E$44="Endémique", IF(AND($K14>0,$K14<5), IF($K14=4,"Inconnu", IF($K14=1, $F14*0.33, IF($K14=2, $F14*0.5+$G14*0.2, SUM(F14:G14)))), 0),"Non requis") -> 622.71 | P14: 1 | R14: 2 | S14: 0 | T14: MDA2 (DEC+ALB) | U14: T3 (ALB/MBD) | X14: 39145 | Y14: Cauè | AA14: TRUE
A15: =IF(INTRO!$E$34<>0,INTRO!$E$34,"") -> STP | B15: Principe | C15: Píncipe | D15: 8418 | E15: =IF(INTRO!$E$48="","",ROUND($D15*INTRO!$E$48,0)) -> 1035 | F15: =IF(INTRO!$E$49="","",ROUND($D15*INTRO!$E$49,0)) -> 2206 | G15: =IF(INTRO!$E$50="","",ROUND($D15*INTRO!$E$50,0)) -> 4908 | H15: 1 | I15: 0 | J15: 3 | K15: 1 | L15: =IF(INTRO!$E$38="Endémique", IF($H15>0, IF($H15=4,"Inconnu", IF($H15=99,"Interrompu", $D15)), 0),"Non requis") -> 8418 | M15: =IF(INTRO!$E$40="Endémique", IF($I15>0, IF($I15=4,"Inconnu",IF($I15=99,"Interrompu", $D15)), 0),"Non requis") -> Non requis | N15: =IF(INTRO!$E$42="Endémique", IF(AND($J15>1,$J15<5), IF($J15=4, "Inconnu", E15+F15), 0),"Non requis") -> 3241 | O15: =IF(INTRO!$E$44="Endémique", IF(AND($K15>0,$K15<5), IF($K15=4,"Inconnu", IF($K15=1, $F15*0.33, IF($K15=2, $F15*0.5+$G15*0.2, SUM(F15:G15)))), 0),"Non requis") -> 727.98 | P15: 1 | R15: 2 | S15: 0 | T15: MDA2 (DEC+ALB) | U15: T3 (ALB/MBD) | X15: 39142 | Y15: Píncipe | AA15: TRUE

Sheet MDA1 (hidden)
A1: MDA 1 - Ivermectine (IVM) et Albendazole (ALB)
A2: Structure administrative, population nécessitant une chimioprévention par groupe d'âge, population traitée par groupe d'âge et couverture
A4: TOTAL | G4: =SUM(G$9:G$1000) -> 0 | H4: =SUM(H$9:H$1000) -> 0 | I4: =SUM(I$9:I$1000) -> 0 | K4: =SUM(K$9:K$1000) -> 0 | L4: =SUM(L$9:L$1000) -> 0 | M4: =SUM(M$9:M$1000) -> 0 | O4: =IF(G4<>0, IF(K4/G4*100=0, "-", K4/G4*100), " ") ->  | P4: =IF(H4<>0, IF(L4/H4*100=0, "-", L4/H4*100), " ") ->  | Q4: =IF(I4<>0, IF(M4/I4*100=0, "-", M4/I4*100), " ") -> 
A6: Structure administrative du pays | D6: Mise en oeuvre de la CP | E6: Date | F6: Population ciblée pour MDA 1 | J6: Population traitée | N6: Couverture du Programme (%)
A7: Pays | B7: Région/Département | C7: District | F7: EAPréS | G7: EAS | H7: Adultes | I7: Total | J7: EAPréS | K7: EAS | L7: Adultes | M7: Total | N7: EAPréS | O7: EAS | P7: Adultes | Q7: Total
A9: =IF(COUNTRY_INFO!A9=0," ",COUNTRY_INFO!A9) -> STP | B9: =IF(COUNTRY_INFO!B9=0," ",COUNTRY_INFO!B9) -> ST | C9: =IF(COUNTRY_INFO!C9=0," ",COUNTRY_INFO!C9) -> Agua Grande | D9: =IF(COUNTRY_INFO!$T$9:$T$1000="MDA1 (IVM+ALB)", COUNTRY_INFO!$T$9:$T$1000, " ") ->  | I9: =SUM(F9:H9) -> 0 | M9: =SUM(J9:L9) -> 0 | O9: =IF(G9<>0, IF(K9/G9*100=0, "-", K9/G9*100), " ") ->  | P9: =IF(H9<>0, IF(L9/H9*100=0, "-", L9/H9*100), " ") -> 
A10: =IF(COUNTRY_INFO!A10=0," ",COUNTRY_INFO!A10) -> STP | B10: =IF(COUNTRY_INFO!B10=0," ",COUNTRY_INFO!B10) -> ST | C10: =IF(COUNTRY_INFO!C10=0," ",COUNTRY_INFO!C10) -> Me-zochi | D10: =IF(COUNTRY_INFO!$T$9:$T$1000="MDA1 (IVM+ALB)", COUNTRY_INFO!$T$9:$T$1000, " ") ->  | I10: =SUM(F10:H10) -> 0 | M10: =SUM(J10:L10) -> 0 | O10: =IF(G10<>0, IF(K10/G10*100=0, "-", K10/G10*100), " ") ->  | P10: =IF(H10<>0, IF(L10/H10*100=0, "-", L10/H10*100), " ") ->  | Q10: =IF(I10<>0, IF(M10/I10*100=0, "-", M10/I10*100), " ") -> 
A11: =IF(COUNTRY_INFO!A11=0," ",COUNTRY_INFO!A11) -> STP | B11: =IF(COUNTRY_INFO!B11=0," ",COUNTRY_INFO!B11) -> ST | C11: =IF(COUNTRY_INFO!C11=0," ",COUNTRY_INFO!C11) -> Lobata | D11: =IF(COUNTRY_INFO!$T$9:$T$1000="MDA1 (IVM+ALB)", COUNTRY_INFO!$T$9:$T$1000, " ") ->  | I11: 0 | M11: 0
A12: =IF(COUNTRY_INFO!A12=0," ",COUNTRY_INFO!A12) -> STP | B12: =IF(COUNTRY_INFO!B12=0," ",COUNTRY_INFO!B12) -> ST | C12: =IF(COUNTRY_INFO!C12=0," ",COUNTRY_INFO!C12) -> Cantagalo | D12: =IF(COUNTRY_INFO!$T$9:$T$1000="MDA1 (IVM+ALB)", COUNTRY_INFO!$T$9:$T$1000, " ") ->  | I12: 0 | M12: 0
A13: =IF(COUNTRY_INFO!A13=0," ",COUNTRY_INFO!A13) -> STP | B13: =IF(COUNTRY_INFO!B13=0," ",COUNTRY_INFO!B13) -> ST | C13: =IF(COUNTRY_INFO!C13=0," ",COUNTRY_INFO!C13) -> Lemba | D13: =IF(COUNTRY_INFO!$T$9:$T$1000="MDA1 (IVM+ALB)", COUNTRY_INFO!$T$9:$T$1000, " ") ->  | I13: 0 | M13: 0
A14: =IF(COUNTRY_INFO!A14=0," ",COUNTRY_INFO!A14) -> STP | B14: =IF(COUNTRY_INFO!B14=0," ",COUNTRY_INFO!B14) -> ST | C14: =IF(COUNTRY_INFO!C14=0," ",COUNTRY_INFO!C14) -> Cauè | D14: =IF(COUNTRY_INFO!$T$9:$T$1000="MDA1 (IVM+ALB)", COUNTRY_INFO!$T$9:$T$1000, " ") ->  | I14: 0 | M14: 0
A15: =IF(COUNTRY_INFO!A15=0," ",COUNTRY_INFO!A15) -> STP | B15: =IF(COUNTRY_INFO!B15=0," ",COUNTRY_INFO!B15) -> Principe | C15: =IF(COUNTRY_INFO!C15=0," ",COUNTRY_INFO!C15) -> Píncipe | D15: =IF(COUNTRY_INFO!$T$9:$T$1000="MDA1 (IVM+ALB)", COUNTRY_INFO!$T$9:$T$1000, " ") ->  | I15: 0 | M15: 0

Sheet MDA2
A1: MDA 2 - Diethylcarbamazine (DEC) + Albendazole (ALB)
A2: Structure administrative, population nécessitant une chimioprévention par groupe d'âge, population traitée par groupe d'âge et couverture
A4: TOTAL | F4: =SUM(F$9:F$1000) -> 23578.4604 | G4: =SUM(G$9:G$1000) -> 52867.408 | H4: 111758.0684 | I4: 188203.9368 | J4: 16561 | K4: 55654 | L4: 90297 | M4: 162512 | N4: =IF(F4<>0, IF(J4/F4*100=0, "-", J4/F4*100), " ") -> 70.23783453 | O4: =IF(G4<>0, IF(K4/G4*100=0, "-", K4/G4*100), " ") -> 105.2709072 | P4: =IF(H4<>0, IF(L4/H4*100=0, "-", L4/H4*100), " ") -> 80.79685099 | Q4: =IF(I4<>0, IF(M4/I4*100=0, "-", M4/I4*100), " ") -> 86.34888449
A6: Structure administrative du pays | D6: Mise en oeuvre de la CP | E6: Date | F6: Population ciblée pour MDA 2 | J6: Population traitée | N6: Couverture du Programme (%)
A7: Pays | B7: Région/Département | C7: District | F7: EAPréS | G7: EAS | H7: Adultes | I7: Total | J7: EAPréS | K7: EAS | L7: Adultes | M7: Total | N7: EAPréS | O7: EAS | P7: Adultes | Q7: Total
A9: =IF(COUNTRY_INFO!A9=0," ",COUNTRY_INFO!A9) -> STP | B9: =IF(COUNTRY_INFO!B9=0," ",COUNTRY_INFO!B9) -> ST | C9: =IF(COUNTRY_INFO!C9=0," ",COUNTRY_INFO!C9) -> Agua Grande | D9: =IF(COUNTRY_INFO!$T$9:$T$1000="MDA2 (DEC+ALB)", COUNTRY_INFO!$T$9:$T$1000, " ") -> MDA2 (DEC+ALB) | E9: Abril 2018 | F9: 9077.95965 | G9: 20354.518 | H9: 43028.05265 | I9: =SUM(F9:H9) -> 72460.5303 | J9: 6613 | K9: 21852 | L9: 37873 | M9: =SUM(J9:L9) -> 66338 | N9: =IF(F9<>0, IF(J9/F9*100=0, "-", J9/F9*100), " ") -> 72.84676574 | O9: 107.3570005 | P9: 88.01932151 | Q9: 91.55053065
A10: =IF(COUNTRY_INFO!A10=0," ",COUNTRY_INFO!A10) -> STP | B10: =IF(COUNTRY_INFO!B10=0," ",COUNTRY_INFO!B10) -> ST | C10: =IF(COUNTRY_INFO!C10=0," ",COUNTRY_INFO!C10) -> Me-zochi | D10: =IF(COUNTRY_INFO!$T$9:$T$1000="MDA2 (DEC+ALB)", COUNTRY_INFO!$T$9:$T$1000, " ") -> MDA2 (DEC+ALB) | E10: Abril 2018 | F10: 5938.43385 | G10: 13315.102 | H10: 28147.21085 | I10: =SUM(F10:H10) -> 47400.7467 | J10: 3505 | K10: 12810 | L10: 17596 | M10: =SUM(J10:L10) -> 33911 | N10: =IF(F10<>0, IF(J10/F10*100=0, "-", J10/F10*100), " ") -> 59.02229592 | O10: =IF(G10<>0, IF(K10/G10*100=0, "-", K10/G10*100), " ") -> 96.20654802 | P10: =IF(H10<>0, IF(L10/H10*100=0, "-", L10/H10*100), " ") -> 62.51418691 | Q10: =IF(I10<>0, IF(M10/I10*100=0, "-", M10/I10*100), " ") -> 71.54106709
A11: =IF(COUNTRY_INFO!A11=0," ",COUNTRY_INFO!A11) -> STP | B11: =IF(COUNTRY_INFO!B11=0," ",COUNTRY_INFO!B11) -> ST | C11: =IF(COUNTRY_INFO!C11=0," ",COUNTRY_INFO!C11) -> Lobata | D11: =IF(COUNTRY_INFO!$T$9:$T$1000="MDA2 (DEC+ALB)", COUNTRY_INFO!$T$9:$T$1000, " ") -> MDA2 (DEC+ALB) | E11: Abril 2018 | F11: 2569.2978 | G11: 5760.856 | H11: 12178.0538 | I11: 20508.2076 | J11: 2011 | K11: 6813 | L11: 9811 | M11: 18635 | N11: 78.27041303 | O11: 118.2636747 | P11: 80.56295498 | Q11: 90.86605891
A12: =IF(COUNTRY_INFO!A12=0," ",COUNTRY_INFO!A12) -> STP | B12: =IF(COUNTRY_INFO!B12=0," ",COUNTRY_INFO!B12) -> ST | C12: =IF(COUNTRY_INFO!C12=0," ",COUNTRY_INFO!C12) -> Cantagalo | D12: =IF(COUNTRY_INFO!$T$9:$T$1000="MDA2 (DEC+ALB)", COUNTRY_INFO!$T$9:$T$1000, " ") -> MDA2 (DEC+ALB) | E12: Abril 2018 | F12: 2266.1889 | G12: 5081.228 | H12: 10741.3669 | I12: 18088.7838 | J12: 1561 | K12: 5031 | L12: 8199 | M12: 14791 | N12: 68.882166 | O12: 99.0114988 | P12: 76.33106732 | Q12: 81.76890256
A13: =IF(COUNTRY_INFO!A13=0," ",COUNTRY_INFO!A13) -> STP | B13: =IF(COUNTRY_INFO!B13=0," ",COUNTRY_INFO!B13) -> ST | C13: =IF(COUNTRY_INFO!C13=0," ",COUNTRY_INFO!C13) -> Lemba | D13: =IF(COUNTRY_INFO!$T$9:$T$1000="MDA2 (DEC+ALB)", COUNTRY_INFO!$T$9:$T$1000, " ") -> MDA2 (DEC+ALB) | E13: Abril 2018 | F13: 1901.3832 | G13: 4263.264 | H13: 9012.2472 | I13: 15176.8944 | J13: 1467 | K13: 4839 | L13: 7886 | M13: 14192 | N13: 77.15435794 | O13: 113.5045824 | P13: 87.50314794 | Q13: 93.51056696
A14: =IF(COUNTRY_INFO!A14=0," ",COUNTRY_INFO!A14) -> STP | B14: =IF(COUNTRY_INFO!B14=0," ",COUNTRY_INFO!B14) -> ST | C14: =IF(COUNTRY_INFO!C14=0," ",COUNTRY_INFO!C14) -> Cauè | D14: =IF(COUNTRY_INFO!$T$9:$T$1000="MDA2 (DEC+ALB)", COUNTRY_INFO!$T$9:$T$1000, " ") -> MDA2 (DEC+ALB) | E14: Abril 2018 | F14: 841.5537 | G14: 1886.924 | H14: 3988.8277 | I14: 6717.3054 | J14: 594 | K14: 2045 | L14: 4074 | M14: 6713 | N14: 70.58373102 | O14: 108.3774439 | P14: 102.1352715 | Q14: 99.93590585
A15: =IF(COUNTRY_INFO!A15=0," ",COUNTRY_INFO!A15) -> STP | B15: =IF(COUNTRY_INFO!B15=0," ",COUNTRY_INFO!B15) -> Principe | C15: =IF(COUNTRY_INFO!C15=0," ",COUNTRY_INFO!C15) -> Píncipe | D15: =IF(COUNTRY_INFO!$T$9:$T$1000="MDA2 (DEC+ALB)", COUNTRY_INFO!$T$9:$T$1000, " ") -> MDA2 (DEC+ALB) | E15: Abril 2018 | F15: 983.6433 | G15: 2205.516 | H15: 4662.3093 | I15: 7851.4686 | J15: 810 | K15: 2264 | L15: 4858 | M15: 7932 | N15: 82.34692393 | O15: 102.6517151 | P15: 104.1972912 | Q15: 101.0256858

Sheet MDA3 (hidden)
A1: MDA 3 - Ivermectine (IVM)
A2: Structure administrative, population nécessitant une chimioprévention par groupe d'âge, population traitée par groupe d'âge et couverture
A4: TOTAL | F4: =SUM(F$9:F$1000) -> 0 | G4: 0 | H4: 0 | I4: 0 | J4: 0 | K4: 0 | L4: 0 | M4: 0 | N4: 0 | O4: 0 | P4: 0 | Q4: 0 | R4: =IF(F4<>0, IF(O4/F4*100=0, "-", O4/F4*100), " ") ->  | S4: =IF(G4<>0, IF(P4/G4*100=0, "-", P4/G4*100), " ") ->  | T4: =IF(H4<>0, IF(Q4/H4*100=0, "-", Q4/H4*100), " ") -> 
A6: Structure administrative du pays | D6: Mise en oeuvre de la CP | E6: Date | F6: Population ciblée pour MDA 3 | I6: Population traitée - tournée 1 | L6: Population traitée - tournée 2 | O6: Population traitée | R6: Couverture du Programme (%)
A7: Pays | B7: Région/Département | C7: District | F7: EAS | G7: Adultes | H7: Total | I7: EAS | J7: Adultes | K7: Total | L7: EAS | M7: Adultes | N7: Total | O7: EAS | P7: Adultes | Q7: Total | R7: EAS | S7: Adultes | T7: Total
A9: =IF(COUNTRY_INFO!A9=0," ",COUNTRY_INFO!A9) -> STP | B9: =IF(COUNTRY_INFO!B9=0," ",COUNTRY_INFO!B9) -> ST | C9: =IF(COUNTRY_INFO!C9=0," ",COUNTRY_INFO!C9) -> Agua Grande | D9: =IF(COUNTRY_INFO!$T$9:$T$1000="MDA3 (IVM)", COUNTRY_INFO!$T$9:$T$1000, " ") ->  | H9: =SUM(F9:G9) -> 0 | K9: =SUM(I9:J9) -> 0 | N9: =SUM(L9:M9) -> 0 | O9: =MAX(I9,L9) -> 0 | P9: 0 | Q9: =SUM(O9:P9) -> 0 | R9: =IF(F9<>0, IF(MAX(I9,L9)/F9*100=0, "-", MAX(I9,L9)/F9*100), " ") ->  | T9: =IF(H9<>0, IF((MAX(I9,L9)+MAX(J9,M9))/H9*100=0, "-",(MAX(I9,L9)+MAX(J9,M9))/H9*100), " ") -> 
A10: =IF(COUNTRY_INFO!A10=0," ",COUNTRY_INFO!A10) -> STP | B10: =IF(COUNTRY_INFO!B10=0," ",COUNTRY_INFO!B10) -> ST | C10: =IF(COUNTRY_INFO!C10=0," ",COUNTRY_INFO!C10) -> Me-zochi | D10: =IF(COUNTRY_INFO!$T$9:$T$1000="MDA3 (IVM)", COUNTRY_INFO!$T$9:$T$1000, " ") ->  | H10: =SUM(F10:G10) -> 0 | K10: =SUM(I10:J10) -> 0 | N10: =SUM(L10:M10) -> 0 | O10: =MAX(I10,L10) -> 0 | P10: =MAX(J10,M10) -> 0 | Q10: =SUM(O10:P10) -> 0 | R10: =IF(F10<>0, IF(MAX(I10,L10)/F10*100=0, "-", MAX(I10,L10)/F10*100), " ") ->  | S10: =IF(G10<>0, IF(MAX(J10,M10)/G10*100=0, "-", MAX(J10,M10)/G10*100), " ") ->  | T10: =IF(H10<>0, IF((MAX(I10,L10)+MAX(J10,M10))/H10*100=0, "-",(MAX(I10,L10)+MAX(J10,M10))/H10*100), " ") -> 
A11: =IF(COUNTRY_INFO!A11=0," ",COUNTRY_INFO!A11) -> STP | B11: =IF(COUNTRY_INFO!B11=0," ",COUNTRY_INFO!B11) -> ST | C11: =IF(COUNTRY_INFO!C11=0," ",COUNTRY_INFO!C11) -> Lobata | D11: =IF(COUNTRY_INFO!$T$9:$T$1000="MDA3 (IVM)", COUNTRY_INFO!$T$9:$T$1000, " ") ->  | H11: 0 | K11: 0 | N11: 0 | O11: 0 | P11: 0 | Q11: 0
A12: =IF(COUNTRY_INFO!A12=0," ",COUNTRY_INFO!A12) -> STP | B12: =IF(COUNTRY_INFO!B12=0," ",COUNTRY_INFO!B12) -> ST | C12: =IF(COUNTRY_INFO!C12=0," ",COUNTRY_INFO!C12) -> Cantagalo | D12: =IF(COUNTRY_INFO!$T$9:$T$1000="MDA3 (IVM)", COUNTRY_INFO!$T$9:$T$1000, " ") ->  | H12: 0 | K12: 0 | N12: 0 | O12: 0 | P12: 0 | Q12: 0
A13: =IF(COUNTRY_INFO!A13=0," ",COUNTRY_INFO!A13) -> STP | B13: =IF(COUNTRY_INFO!B13=0," ",COUNTRY_INFO!B13) -> ST | C13: =IF(COUNTRY_INFO!C13=0," ",COUNTRY_INFO!C13) -> Lemba | D13: =IF(COUNTRY_INFO!$T$9:$T$1000="MDA3 (IVM)", COUNTRY_INFO!$T$9:$T$1000, " ") ->  | H13: 0 | K13: 0 | N13: 0 | O13: 0 | P13: 0 | Q13: 0
A14: =IF(COUNTRY_INFO!A14=0," ",COUNTRY_INFO!A14) -> STP | B14: =IF(COUNTRY_INFO!B14=0," ",COUNTRY_INFO!B14) -> ST | C14: =IF(COUNTRY_INFO!C14=0," ",COUNTRY_INFO!C14) -> Cauè | D14: =IF(COUNTRY_INFO!$T$9:$T$1000="MDA3 (IVM)", COUNTRY_INFO!$T$9:$T$1000, " ") ->  | H14: 0 | K14: 0 | N14: 0 | O14: 0 | P14: 0 | Q14: 0
A15: =IF(COUNTRY_INFO!A15=0," ",COUNTRY_INFO!A15) -> STP | B15: =IF(COUNTRY_INFO!B15=0," ",COUNTRY_INFO!B15) -> Principe | C15: =IF(COUNTRY_INFO!C15=0," ",COUNTRY_INFO!C15) -> Píncipe | D15: =IF(COUNTRY_INFO!$T$9:$T$1000="MDA3 (IVM)", COUNTRY_INFO!$T$9:$T$1000, " ") ->  | H15: 0 | K15: 0 | N15: 0 | O15: 0 | P15: 0 | Q15: 0

Sheet T1
A1: T 1 - Praziquantel (PZQ) et Albendazole (ALB) ou Mebendazole (MBD)
A2: Structure administrative, population nécessitant une chimioprévention par groupe d'âge, population traitée par groupe d'âge et couverture
A4: TOTAL | G4: =SUM(G$9:G$1000) -> 0 | H4: 24028 | I4: 24028 | J4: 0 | K4: =SUM(K$9:K$1000) -> 24028 | L4: 0 | M4: 22803 | N4: 0 | O4: 22803 | P4: =IF(G4<>0, IF(L4/G4*100=0, "-", L4/G4*100), " ") ->  | Q4: =IF(OR(I4<>0,H4<>0), IF(M4/MAX(H4,I4)*100=0, "-", M4/MAX(H4,I4)*100), " ") -> 94.90178126 | R4: =IF(J4<>0, IF(N4/J4*100=0, "-", N4/J4*100), " ") ->  | S4: =IF(K4<>0, IF(O4/K4*100=0, "-", O4/K4*100), " ") -> 94.90178126
A6: Structure administrative du pays | D6: Mise en oeuvre de la CP | E6: Médica-ment | F6: Date | G6: Population ciblée pour T1 | L6: Population traitée | P6: Couverture du Programme (%)
A7: Pays | B7: Région/Département | C7: District | G7: EAPréS (ALB) | H7: EAS (ALB) | I7: EAS (PZQ) | J7: Adultes (PZQ) | K7: Total | L7: EAPréS | M7: EAS | N7: Adultes | O7: Total | P7: EAPréS | Q7: EAS | R7: Adultes | S7: Total
A9: =IF(COUNTRY_INFO!A9=0," ",COUNTRY_INFO!A9) -> STP | B9: =IF(COUNTRY_INFO!B9=0," ",COUNTRY_INFO!B9) -> ST | C9: =IF(COUNTRY_INFO!C9=0," ",COUNTRY_INFO!C9) -> Agua Grande | D9: =IF(OR(COUNTRY_INFO!$T$9:$T$1000="T1 (PZQ+ALB/MBD)",COUNTRY_INFO!$U$9:$U$1000="T1 (PZQ+ALB/MBD)"), "T1 (PZQ+ALB/MBD)", " ") -> T1 (PZQ+ALB/MBD) | E9: PZQ+MBD | F9: Novembro 2018 | H9: 14719 | I9: 14719 | K9: =MAX(H9:I9)+G9+J9 -> 14719 | M9: 14524 | O9: =SUM(L9:N9) -> 14524 | P9: =IF(G9<>0, IF(L9/G9*100=0, "-", L9/G9*100), " ") ->  | Q9: =IF(OR(I9<>0,H9<>0), IF(M9/MAX(H9,I9)*100=0, "-", M9/MAX(H9,I9)*100), " ") -> 98.67518174 | R9: =IF(J9<>0, IF(N9/J9*100=0, "-", N9/J9*100), " ") ->  | S9: 98.67518174
A10: =IF(COUNTRY_INFO!A10=0," ",COUNTRY_INFO!A10) -> STP | B10: =IF(COUNTRY_INFO!B10=0," ",COUNTRY_INFO!B10) -> ST | C10: =IF(COUNTRY_INFO!C10=0," ",COUNTRY_INFO!C10) -> Me-zochi | D10: =IF(OR(COUNTRY_INFO!$T$9:$T$1000="T1 (PZQ+ALB/MBD)",COUNTRY_INFO!$U$9:$U$1000="T1 (PZQ+ALB/MBD)"), "T1 (PZQ+ALB/MBD)", " ") -> T1 (PZQ+ALB/MBD) | E10: PZQ+MBD | F10: Novembro 2018 | H10: 9309 | I10: 9309 | K10: =MAX(H10:I10)+G10+J10 -> 9309 | M10: 8279 | O10: =SUM(L10:N10) -> 8279 | P10: =IF(G10<>0, IF(L10/G10*100=0, "-", L10/G10*100), " ") ->  | Q10: =IF(OR(I10<>0,H10<>0), IF(M10/MAX(H10,I10)*100=0, "-", M10/MAX(H10,I10)*100), " ") -> 88.93543882 | R10: =IF(J10<>0, IF(N10/J10*100=0, "-", N10/J10*100), " ") ->  | S10: =IF(K10<>0, IF(O10/K10*100=0, "-", O10/K10*100), " ") -> 88.93543882
A11: =IF(COUNTRY_INFO!A11=0," ",COUNTRY_INFO!A11) -> STP | B11: =IF(COUNTRY_INFO!B11=0," ",COUNTRY_INFO!B11) -> ST | C11: =IF(COUNTRY_INFO!C11=0," ",COUNTRY_INFO!C11) -> Lobata | D11: =IF(OR(COUNTRY_INFO!$T$9:$T$1000="T1 (PZQ+ALB/MBD)",COUNTRY_INFO!$U$9:$U$1000="T1 (PZQ+ALB/MBD)"), "T1 (PZQ+ALB/MBD)", " ") ->  | K11: 0 | O11: 0
A12: =IF(COUNTRY_INFO!A12=0," ",COUNTRY_INFO!A12) -> STP | B12: =IF(COUNTRY_INFO!B12=0," ",COUNTRY_INFO!B12) -> ST | C12: =IF(COUNTRY_INFO!C12=0," ",COUNTRY_INFO!C12) -> Cantagalo | D12: =IF(OR(COUNTRY_INFO!$T$9:$T$1000="T1 (PZQ+ALB/MBD)",COUNTRY_INFO!$U$9:$U$1000="T1 (PZQ+ALB/MBD)"), "T1 (PZQ+ALB/MBD)", " ") ->  | K12: 0 | O12: 0
A13: =IF(COUNTRY_INFO!A13=0," ",COUNTRY_INFO!A13) -> STP | B13: =IF(COUNTRY_INFO!B13=0," ",COUNTRY_INFO!B13) -> ST | C13: =IF(COUNTRY_INFO!C13=0," ",COUNTRY_INFO!C13) -> Lemba | D13: =IF(OR(COUNTRY_INFO!$T$9:$T$1000="T1 (PZQ+ALB/MBD)",COUNTRY_INFO!$U$9:$U$1000="T1 (PZQ+ALB/MBD)"), "T1 (PZQ+ALB/MBD)", " ") ->  | K13: 0 | O13: 0
A14: =IF(COUNTRY_INFO!A14=0," ",COUNTRY_INFO!A14) -> STP | B14: =IF(COUNTRY_INFO!B14=0," ",COUNTRY_INFO!B14) -> ST | C14: =IF(COUNTRY_INFO!C14=0," ",COUNTRY_INFO!C14) -> Cauè | D14: =IF(OR(COUNTRY_INFO!$T$9:$T$1000="T1 (PZQ+ALB/MBD)",COUNTRY_INFO!$U$9:$U$1000="T1 (PZQ+ALB/MBD)"), "T1 (PZQ+ALB/MBD)", " ") ->  | K14: 0 | O14: 0
A15: =IF(COUNTRY_INFO!A15=0," ",COUNTRY_INFO!A15) -> STP | B15: =IF(COUNTRY_INFO!B15=0," ",COUNTRY_INFO!B15) -> Principe | C15: =IF(COUNTRY_INFO!C15=0," ",COUNTRY_INFO!C15) -> Píncipe | D15: =IF(OR(COUNTRY_INFO!$T$9:$T$1000="T1 (PZQ+ALB/MBD)",COUNTRY_INFO!$U$9:$U$1000="T1 (PZQ+ALB/MBD)"), "T1 (PZQ+ALB/MBD)", " ") ->  | K15: 0 | O15: 0

Sheet T2
A1: T 2 - Praziquantel (PZQ)
A2: Structure administrative, population nécessitant une chimioprévention par groupe d'âge, population traitée par groupe d'âge et couverture
A4: TOTAL | F4: =SUM(F$9:F$1000) -> 0 | G4: 0 | H4: 0 | I4: 0 | J4: 0 | K4: 0 | L4: 0 | M4: 0 | N4: =IF(F4<>0, IF(J4/F4*100=0, "-", J4/F4*100), " ") ->  | O4: =IF(G4<>0, IF(K4/G4*100=0, "-", K4/G4*100), " ") ->  | P4: =IF(H4<>0, IF(L4/H4*100=0, "-", L4/H4*100), " ") ->  | Q4: =IF(I4<>0, IF(M4/I4*100=0, "-", M4/I4*100), " ") -> 
A6: Structure administrative du pays | D6: Mise en oeuvre de la CP | E6: Date | F6: Population ciblée pour T2 | J6: Population traitée | N6: Couverture du Programme (%)
A7: Pays | B7: Région/Département | C7: District | F7: EAPréS | G7: EAS | H7: Adultes | I7: Total | J7: EAPréS | K7: EAS | L7: Adultes | M7: Total | N7: EAPréS | O7: EAS | P7: Adultes | Q7: Total
A9: =IF(COUNTRY_INFO!A9=0," ",COUNTRY_INFO!A9) -> STP | B9: =IF(COUNTRY_INFO!B9=0," ",COUNTRY_INFO!B9) -> ST | C9: =IF(COUNTRY_INFO!C9=0," ",COUNTRY_INFO!C9) -> Agua Grande | D9: =IF(OR(COUNTRY_INFO!$T$9:$T$1000="T2 (PZQ)",COUNTRY_INFO!$U$9:$U$1000="T2 (PZQ)"), "T2 (PZQ)", " ") ->  | I9: =SUM(F9:H9) -> 0 | M9: =SUM(J9:L9) -> 0 | N9: =IF(F9<>0, IF(J9/F9*100=0, "-", J9/F9*100), " ") -> 
A10: =IF(COUNTRY_INFO!A10=0," ",COUNTRY_INFO!A10) -> STP | B10: =IF(COUNTRY_INFO!B10=0," ",COUNTRY_INFO!B10) -> ST | C10: =IF(COUNTRY_INFO!C10=0," ",COUNTRY_INFO!C10) -> Me-zochi | D10: =IF(OR(COUNTRY_INFO!$T$9:$T$1000="T2 (PZQ)",COUNTRY_INFO!$U$9:$U$1000="T2 (PZQ)"), "T2 (PZQ)", " ") ->  | I10: =SUM(F10:H10) -> 0 | M10: =SUM(J10:L10) -> 0 | N10: =IF(F10<>0, IF(J10/F10*100=0, "-", J10/F10*100), " ") ->  | O10: =IF(G10<>0, IF(K10/G10*100=0, "-", K10/G10*100), " ") ->  | P10: =IF(H10<>0, IF(L10/H10*100=0, "-", L10/H10*100), " ") ->  | Q10: =IF(I10<>0, IF(M10/I10*100=0, "-", M10/I10*100), " ") -> 
A11: =IF(COUNTRY_INFO!A11=0," ",COUNTRY_INFO!A11) -> STP | B11: =IF(COUNTRY_INFO!B11=0," ",COUNTRY_INFO!B11) -> ST | C11: =IF(COUNTRY_INFO!C11=0," ",COUNTRY_INFO!C11) -> Lobata | D11: =IF(OR(COUNTRY_INFO!$T$9:$T$1000="T2 (PZQ)",COUNTRY_INFO!$U$9:$U$1000="T2 (PZQ)"), "T2 (PZQ)", " ") ->  | I11: 0 | M11: 0
A12: =IF(COUNTRY_INFO!A12=0," ",COUNTRY_INFO!A12) -> STP | B12: =IF(COUNTRY_INFO!B12=0," ",COUNTRY_INFO!B12) -> ST | C12: =IF(COUNTRY_INFO!C12=0," ",COUNTRY_INFO!C12) -> Cantagalo | D12: =IF(OR(COUNTRY_INFO!$T$9:$T$1000="T2 (PZQ)",COUNTRY_INFO!$U$9:$U$1000="T2 (PZQ)"), "T2 (PZQ)", " ") ->  | I12: 0 | M12: 0
A13: =IF(COUNTRY_INFO!A13=0," ",COUNTRY_INFO!A13) -> STP | B13: =IF(COUNTRY_INFO!B13=0," ",COUNTRY_INFO!B13) -> ST | C13: =IF(COUNTRY_INFO!C13=0," ",COUNTRY_INFO!C13) -> Lemba | D13: =IF(OR(COUNTRY_INFO!$T$9:$T$1000="T2 (PZQ)",COUNTRY_INFO!$U$9:$U$1000="T2 (PZQ)"), "T2 (PZQ)", " ") ->  | I13: 0 | M13: 0
A14: =IF(COUNTRY_INFO!A14=0," ",COUNTRY_INFO!A14) -> STP | B14: =IF(COUNTRY_INFO!B14=0," ",COUNTRY_INFO!B14) -> ST | C14: =IF(COUNTRY_INFO!C14=0," ",COUNTRY_INFO!C14) -> Cauè | D14: =IF(OR(COUNTRY_INFO!$T$9:$T$1000="T2 (PZQ)",COUNTRY_INFO!$U$9:$U$1000="T2 (PZQ)"), "T2 (PZQ)", " ") ->  | I14: 0 | M14: 0
A15: =IF(COUNTRY_INFO!A15=0," ",COUNTRY_INFO!A15) -> STP | B15: =IF(COUNTRY_INFO!B15=0," ",COUNTRY_INFO!B15) -> Principe | C15: =IF(COUNTRY_INFO!C15=0," ",COUNTRY_INFO!C15) -> Píncipe | D15: =IF(OR(COUNTRY_INFO!$T$9:$T$1000="T2 (PZQ)",COUNTRY_INFO!$U$9:$U$1000="T2 (PZQ)"), "T2 (PZQ)", " ") ->  | I15: 0 | M15: 0

Sheet T3_R1
A1: T 3 - Albendazole (ALB) ou Mebendazole (MBD) - Tournée 1
A2: Structure administrative, population nécessitant une chimioprévention par groupe d'âge, population traitée par groupe d'âge et couverture
A4: TOTAL | G4: =SUM(G$9:G$1000) -> 0 | H4: 14289 | I4: 0 | J4: 14289 | K4: 0 | L4: 13210 | M4: 0 | N4: 13210 | O4: =IF(G4<>0, IF(K4/G4*100=0, "-", K4/G4*100), " ") ->  | P4: =IF(H4<>0, IF(L4/H4*100=0, "-", L4/H4*100), " ") -> 92.44873679 | Q4: =IF(I4<>0, IF(M4/I4*100=0, "-", M4/I4*100), " ") ->  | R4: =IF(J4<>0, IF(N4/J4*100=0, "-", N4/J4*100), " ") -> 92.44873679
A6: Structure administrative du pays | D6: Mise en oeuvre de la CP | E6: Médica-ment | F6: Date | G6: Population ciblée pour T3 | K6: Population traitée | O6: Couverture du Programme (%)
A7: Pays | B7: Région/Département | C7: District | G7: EAPréS | H7: EAS | I7: Adultes | J7: Total | K7: EAPréS | L7: EAS | M7: Adultes | N7: Total | O7: EAPréS | P7: EAS | Q7: Adultes | R7: Total
A9: =IF(COUNTRY_INFO!A9=0," ",COUNTRY_INFO!A9) -> STP | B9: =IF(COUNTRY_INFO!B9=0," ",COUNTRY_INFO!B9) -> ST | C9: =IF(COUNTRY_INFO!C9=0," ",COUNTRY_INFO!C9) -> Agua Grande | D9: =IF(OR(COUNTRY_INFO!$T$9:$T$1000="T3 (ALB/MBD)",COUNTRY_INFO!$U$9:$U$1000="T3 (ALB/MBD)"), "T3 (ALB/MBD)", " ") ->  | J9: =SUM(G9:I9) -> 0 | K9: 0 | N9: =SUM(K9:M9) -> 0 | O9: =IF(G9<>0, IF(K9/G9*100=0, "-", K9/G9*100), " ") -> 
A10: =IF(COUNTRY_INFO!A10=0," ",COUNTRY_INFO!A10) -> STP | B10: =IF(COUNTRY_INFO!B10=0," ",COUNTRY_INFO!B10) -> ST | C10: =IF(COUNTRY_INFO!C10=0," ",COUNTRY_INFO!C10) -> Me-zochi | D10: =IF(OR(COUNTRY_INFO!$T$9:$T$1000="T3 (ALB/MBD)",COUNTRY_INFO!$U$9:$U$1000="T3 (ALB/MBD)"), "T3 (ALB/MBD)", " ") ->  | J10: =SUM(G10:I10) -> 0 | K10: 0 | N10: =SUM(K10:M10) -> 0 | O10: =IF(G10<>0, IF(K10/G10*100=0, "-", K10/G10*100), " ") ->  | P10: =IF(H10<>0, IF(L10/H10*100=0, "-", L10/H10*100), " ") ->  | Q10: =IF(I10<>0, IF(M10/I10*100=0, "-", M10/I10*100), " ") ->  | R10: =IF(J10<>0, IF(N10/J10*100=0, "-", N10/J10*100), " ") -> 
A11: =IF(COUNTRY_INFO!A11=0," ",COUNTRY_INFO!A11) -> STP | B11: =IF(COUNTRY_INFO!B11=0," ",COUNTRY_INFO!B11) -> ST | C11: =IF(COUNTRY_INFO!C11=0," ",COUNTRY_INFO!C11) -> Lobata | D11: =IF(OR(COUNTRY_INFO!$T$9:$T$1000="T3 (ALB/MBD)",COUNTRY_INFO!$U$9:$U$1000="T3 (ALB/MBD)"), "T3 (ALB/MBD)", " ") -> T3 (ALB/MBD) | E11: MBD | F11: nevembro 2018 | H11: 4112 | J11: 4112 | K11: 0 | L11: 3379 | N11: 3379 | P11: 82.17412451 | R11: 82.17412451
A12: =IF(COUNTRY_INFO!A12=0," ",COUNTRY_INFO!A12) -> STP | B12: =IF(COUNTRY_INFO!B12=0," ",COUNTRY_INFO!B12) -> ST | C12: =IF(COUNTRY_INFO!C12=0," ",COUNTRY_INFO!C12) -> Cantagalo | D12: =IF(OR(COUNTRY_INFO!$T$9:$T$1000="T3 (ALB/MBD)",COUNTRY_INFO!$U$9:$U$1000="T3 (ALB/MBD)"), "T3 (ALB/MBD)", " ") -> T3 (ALB/MBD) | E12: MBD | F12: nevembro 2018 | H12: 3422 | J12: 3422 | L12: 3308 | N12: 3308 | P12: 96.66861485 | R12: 96.66861485
A13: =IF(COUNTRY_INFO!A13=0," ",COUNTRY_INFO!A13) -> STP | B13: =IF(COUNTRY_INFO!B13=0," ",COUNTRY_INFO!B13) -> ST | C13: =IF(COUNTRY_INFO!C13=0," ",COUNTRY_INFO!C13) -> Lemba | D13: =IF(OR(COUNTRY_INFO!$T$9:$T$1000="T3 (ALB/MBD)",COUNTRY_INFO!$U$9:$U$1000="T3 (ALB/MBD)"), "T3 (ALB/MBD)", " ") -> T3 (ALB/MBD) | E13: MBD | F13: nevembro 2018 | H13: 3446 | J13: 3446 | L13: 3181 | N13: 3181 | P13: 92.30992455 | R13: 92.30992455
A14: =IF(COUNTRY_INFO!A14=0," ",COUNTRY_INFO!A14) -> STP | B14: =IF(COUNTRY_INFO!B14=0," ",COUNTRY_INFO!B14) -> ST | C14: =IF(COUNTRY_INFO!C14=0," ",COUNTRY_INFO!C14) -> Cauè | D14: =IF(OR(COUNTRY_INFO!$T$9:$T$1000="T3 (ALB/MBD)",COUNTRY_INFO!$U$9:$U$1000="T3 (ALB/MBD)"), "T3 (ALB/MBD)", " ") -> T3 (ALB/MBD) | E14: MBD | F14: nevembro 2018 | H14: 1333 | J14: 1333 | L14: 1425 | N14: 1425 | P14: 106.9017254 | R14: 106.9017254
A15: =IF(COUNTRY_INFO!A15=0," ",COUNTRY_INFO!A15) -> STP | B15: =IF(COUNTRY_INFO!B15=0," ",COUNTRY_INFO!B15) -> Principe | C15: =IF(COUNTRY_INFO!C15=0," ",COUNTRY_INFO!C15) -> Píncipe | D15: =IF(OR(COUNTRY_INFO!$T$9:$T$1000="T3 (ALB/MBD)",COUNTRY_INFO!$U$9:$U$1000="T3 (ALB/MBD)"), "T3 (ALB/MBD)", " ") -> T3 (ALB/MBD) | E15: MBD | F15: nevembro 2018 | H15: 1976 | J15: 1976 | L15: 1917 | N15: 1917 | P15: 97.01417004 | R15: 97.01417004

Sheet T3_R2
A1: T 3 - Albendazole (ALB) ou Mebendazole (MBD) - Tournée 2
A2: Structure administrative, population nécessitant une chimioprévention par groupe d'âge, population traitée par groupe d'âge et couverture
A4: TOTAL | G4: =SUM(G$9:G$1000) -> 0 | H4: 0 | I4: 0 | J4: 0 | K4: 0 | L4: 0 | M4: 0 | N4: 0 | O4: =IF(G4<>0, IF(K4/G4*100=0, "-", K4/G4*100), " ") ->  | P4: =IF(H4<>0, IF(L4/H4*100=0, "-", L4/H4*100), " ") ->  | Q4: =IF(I4<>0, IF(M4/I4*100=0, "-", M4/I4*100), " ") ->  | R4: =IF(J4<>0, IF(N4/J4*100=0, "-", N4/J4*100), " ") -> 
A6: Structure administrative du pays | D6: Mise en oeuvre de la CP | E6: Médica-ment | F6: Date | G6: Population ciblée pour T3 | K6: Population traitée | O6: Couverture du Programme (%)
A7: Pays | B7: Région/Département | C7: District | G7: EAPréS | H7: EAS | I7: Adultes | J7: Total | K7: EAPréS | L7: EAS | M7: Adultes | N7: Total | O7: EAPréS | P7: EAS | Q7: Adultes | R7: Total
A9: =IF(COUNTRY_INFO!A9=0," ",COUNTRY_INFO!A9) -> STP | B9: =IF(COUNTRY_INFO!B9=0," ",COUNTRY_INFO!B9) -> ST | C9: =IF(COUNTRY_INFO!C9=0," ",COUNTRY_INFO!C9) -> Agua Grande | D9: =IF(AND(COUNTRY_INFO!$T$9:$T$1000="T3 (ALB/MBD)",COUNTRY_INFO!$U$9:$U$1000="T3 (ALB/MBD)"), "T3 (ALB/MBD)", " ") ->  | J9: =SUM(G9:I9) -> 0 | N9: =SUM(K9:M9) -> 0 | O9: =IF(G9<>0, IF(K9/G9*100=0, "-", K9/G9*100), " ") -> 
A10: =IF(COUNTRY_INFO!A10=0," ",COUNTRY_INFO!A10) -> STP | B10: =IF(COUNTRY_INFO!B10=0," ",COUNTRY_INFO!B10) -> ST | C10: =IF(COUNTRY_INFO!C10=0," ",COUNTRY_INFO!C10) -> Me-zochi | D10: =IF(AND(COUNTRY_INFO!$T$9:$T$1000="T3 (ALB/MBD)",COUNTRY_INFO!$U$9:$U$1000="T3 (ALB/MBD)"), "T3 (ALB/MBD)", " ") ->  | J10: =SUM(G10:I10) -> 0 | N10: =SUM(K10:M10) -> 0 | O10: =IF(G10<>0, IF(K10/G10*100=0, "-", K10/G10*100), " ") ->  | P10: =IF(H10<>0, IF(L10/H10*100=0, "-", L10/H10*100), " ") ->  | Q10: =IF(I10<>0, IF(M10/I10*100=0, "-", M10/I10*100), " ") ->  | R10: =IF(J10<>0, IF(N10/J10*100=0, "-", N10/J10*100), " ") -> 
A11: =IF(COUNTRY_INFO!A11=0," ",COUNTRY_INFO!A11) -> STP | B11: =IF(COUNTRY_INFO!B11=0," ",COUNTRY_INFO!B11) -> ST | C11: =IF(COUNTRY_INFO!C11=0," ",COUNTRY_INFO!C11) -> Lobata | D11: =IF(AND(COUNTRY_INFO!$T$9:$T$1000="T3 (ALB/MBD)",COUNTRY_INFO!$U$9:$U$1000="T3 (ALB/MBD)"), "T3 (ALB/MBD)", " ") ->  | J11: 0 | N11: 0
A12: =IF(COUNTRY_INFO!A12=0," ",COUNTRY_INFO!A12) -> STP | B12: =IF(COUNTRY_INFO!B12=0," ",COUNTRY_INFO!B12) -> ST | C12: =IF(COUNTRY_INFO!C12=0," ",COUNTRY_INFO!C12) -> Cantagalo | D12: =IF(AND(COUNTRY_INFO!$T$9:$T$1000="T3 (ALB/MBD)",COUNTRY_INFO!$U$9:$U$1000="T3 (ALB/MBD)"), "T3 (ALB/MBD)", " ") ->  | J12: 0 | N12: 0
A13: =IF(COUNTRY_INFO!A13=0," ",COUNTRY_INFO!A13) -> STP | B13: =IF(COUNTRY_INFO!B13=0," ",COUNTRY_INFO!B13) -> ST | C13: =IF(COUNTRY_INFO!C13=0," ",COUNTRY_INFO!C13) -> Lemba | D13: =IF(AND(COUNTRY_INFO!$T$9:$T$1000="T3 (ALB/MBD)",COUNTRY_INFO!$U$9:$U$1000="T3 (ALB/MBD)"), "T3 (ALB/MBD)", " ") ->  | J13: 0 | N13: 0
A14: =IF(COUNTRY_INFO!A14=0," ",COUNTRY_INFO!A14) -> STP | B14: =IF(COUNTRY_INFO!B14=0," ",COUNTRY_INFO!B14) -> ST | C14: =IF(COUNTRY_INFO!C14=0," ",COUNTRY_INFO!C14) -> Cauè | D14: =IF(AND(COUNTRY_INFO!$T$9:$T$1000="T3 (ALB/MBD)",COUNTRY_INFO!$U$9:$U$1000="T3 (ALB/MBD)"), "T3 (ALB/MBD)", " ") ->  | J14: 0 | N14: 0
A15: =IF(COUNTRY_INFO!A15=0," ",COUNTRY_INFO!A15) -> STP | B15: =IF(COUNTRY_INFO!B15=0," ",COUNTRY_INFO!B15) -> Principe | C15: =IF(COUNTRY_INFO!C15=0," ",COUNTRY_INFO!C15) -> Píncipe | D15: =IF(AND(COUNTRY_INFO!$T$9:$T$1000="T3 (ALB/MBD)",COUNTRY_INFO!$U$9:$U$1000="T3 (ALB/MBD)"), "T3 (ALB/MBD)", " ") ->  | J15: 0 | N15: 0

Sheet DISTRICT
A1: Nombre d'individus traités
A2: Structure administrative, population traitée par groupe d'âge et sexe
A4: TOTAL | D4: =SUM(D$9:D$1000) -> 201784 | E4: =SUM(E$9:E$1000) -> 78135 | F4: =SUM(F$9:F$1000) -> 84377 | G4: =SUM(G$9:G$1000) -> 162512 | H4: =SUM(H$9:H$1000) -> 162512 | I4: =IF(D4>0, IF(H4/D4*100<>0, H4/D4*100, "-"),0) -> 80.53760457 | J4: =SUM(J$9:J$1000) -> 0 | K4: =SUM(K$9:K$1000) -> 0 | L4: =SUM(L$9:L$1000) -> 0 | M4: =SUM(M$9:M$1000) -> 0 | N4: =SUM(N$9:N$1000) -> 0 | O4: =IF(J4>0, IF(N4/J4*100<>0, N4/J4*100, "-"),0) -> 0 | P4: =SUM(P$9:P$1000) -> 77687 | Q4: =SUM(Q$9:Q$1000) -> 18470 | R4: =SUM(R$9:R$1000) -> 17526 | S4: =SUM(S$9:S$1000) -> 162512 | T4: =SUM(T$9:T$1000) -> 16561 | V4: 52313 | X4: =SUM(X$9:X$1000) -> 68874 | Y4: =IF(P4>0, IF(X4/P4*100<>0, X4/P4*100, "-"),0) -> 88.65575965 | Z4: =SUM(Z$9:Z$1000) -> 38154.74 | AA4: 11704 | AB4: 11099 | AC4: 22803 | AD4: 16835 | AF4: 0 | AH4: 16835 | AI4: =IF(Z4>0, IF(AH4/Z4*100<>0, AH4/Z4*100, "-"),0) -> 44.12295825
A6: Structure administrative du pays | D6: Population nécessitant la CP pour FL | E6: Population traitée pour la filariose lymphatique | J6: Population nécessitant la CP pour ONCHO | K6: Population traitée pour l'onchocercose | P6: Population nécessitant la CP pour STH | Q6: Population traitée pour les géohelminthiases | Z6: Population nécessitant la CP pour SCH | AA6: Population traitée pour la schistosomiase | AP6: =SUM(AP9:AP1000) -> 6455 | AQ6: 24819 | AR6: 52868 | AS6: 117642 | AT6: =SUM(AT9:AT1000) -> 201784 | AU6: =COUNTIF(AU9:AU1000,"Y") -> 2 | AV6: =SUM(AV9:AV1000) -> 16561 | AW6: 55654 | AX6: 90297 | AY6: =SUM(AY9:AY1000) -> 162512 | AZ6: 16561 | BA6: 55654 | BB6: 90297 | BC6: 162512 | BD6: =IF(AT6<>0,BC6/AT6,0) -> 0.8053760457
A7: Pays | B7: Région/Département | C7: District | E7: Masculine | F7: Féminine | G7: Total traité | H7: Total traité ayant besoin de CP | I7: (%) | K7: Masculine | L7: Féminine | M7: Total traité | N7: Total traité ayant besoin de CP | O7: (%) | Q7: Masculine | R7: Féminine | S7: Total traité | T7: EAPréS traité ayant besoin de CP | U7: EAPréS (%) | V7: EAS traité ayant besoin de CP | W7: EAS (%) | X7: Total traité ayant besoin de CP | Y7: (%) | AA7: Masculine | AB7: Féminine | AC7: Total traité | AD7: EAS traité ayant besoin de CP | AE7: EAS (%) | AF7: Adultes traité ayant besoin de CP | AG7: Adultes (%) | AH7: Total traité ayant besoin de CP | AI7: (%) | AK7: LF | AL7: ONCHO | AM7: STH | AN7: SCH-SAC | AO7: SCH_Adults | AP7: <1 | AQ7: PreSAC | AR7: SAC | AS7: Adults | AT7: Total | AU7: Dis | AV7: PreSAC | AW7: SAC | AX7: Adults | AY7: Total | AZ7: PreSAC | BA7: SAC | BB7: Adults | BC7: Total | BD7: Coverage
A9: =IF(COUNTRY_INFO!A9=0," ",COUNTRY_INFO!A9) -> STP | B9: =IF(COUNTRY_INFO!B9=0," ",COUNTRY_INFO!B9) -> ST | C9: =IF(COUNTRY_INFO!C9=0," ",COUNTRY_INFO!C9) -> Agua Grande | D9: =COUNTRY_INFO!L9 -> 77689 | E9: 31018 | F9: 35320 | G9: =MAX('MDA1'!M9,'MDA2'!M9) -> 66338 | H9: =IF(AND(COUNTRY_INFO!H9>0,COUNTRY_INFO!H9<4),IF(D9>MAX('MDA1'!M9,'MDA2'!M9),MAX('MDA1'!M9,'MDA2'!M9),D9),0) -> 66338 | I9: =IF(AND(COUNTRY_INFO!H9>0,COUNTRY_INFO!H9<4), IF(G9/D9*100<>0, IF(G9/D9*100>100,100,G9/D9*100), "-"),0) -> 85.38917994 | J9: =COUNTRY_INFO!M9 -> Non requis | M9: =MAX('MDA1'!M9,MAX('MDA3'!I9,'MDA3'!L9)+MAX('MDA3'!J9,'MDA3'!M9)) -> 0 | N9: =IF(AND(COUNTRY_INFO!I9>0,COUNTRY_INFO!I9<4),IF(J9>MAX('MDA1'!M9,MAX('MDA3'!I9,'MDA3'!L9)+MAX('MDA3'!J9,'MDA3'!M9)),MAX('MDA1'!M9,MAX('MDA3'!I9,'MDA3'!L9)+MAX('MDA3'!J9,'MDA3'!M9)),J9),0) -> 0 | O9: =IF(AND(COUNTRY_INFO!I9>0,COUNTRY_INFO!I9<4), IF(M9/J9*100<>0, IF(M9/J9*100>100,100,M9/J9*100), "-"),0) -> 0 | P9: =COUNTRY_INFO!N9 -> 29911 | Q9: 7451 | R9: 7073 | S9: =SUM(MAX('MDA2'!J9, 'T1'!L9, MAX(T3_R1!K9, T3_R2!K9)), MAX('MDA1'!K9, 'MDA2'!K9, 'T1'!M9, MAX(T3_R1!L9, T3_R2!L9)), MAX('MDA1'!L9, 'MDA2'!L9, 'T1'!N9, MAX(T3_R1!M9, T3_R2!M9))) -> 66338 | T9: =IF(AND(COUNTRY_INFO!J9>1,COUNTRY_INFO!J9<4),IF(COUNTRY_INFO!E9>MAX('MDA2'!J9,'T1'!L9,MAX(T3_R1!K9,T3_R2!K9)),MAX('MDA2'!J9,'T1'!L9,MAX(T3_R1!K9,T3_R2!K9)),COUNTRY_INFO!E9),0) -> 6613 | U9: =IF(AND(COUNTRY_INFO!J9>1,COUNTRY_INFO!J9<4), IF(T9/COUNTRY_INFO!E9*100<>0, IF(T9/COUNTRY_INFO!E9*100>100,100,T9/COUNTRY_INFO!E9*100), "-"),0) -> 69.20259523 | V9: =IF(AND(COUNTRY_INFO!J9>1,COUNTRY_INFO!J9<4),IF(COUNTRY_INFO!F9>MAX('MDA1'!K9,'MDA2'!K9,'T1'!M9,MAX(T3_R1!L9,T3_R2!L9)),MAX('MDA1'!K9,'MDA2'!K9,'T1'!M9,MAX(T3_R1!L9,T3_R2!L9)),COUNTRY_INFO!F9),0) -> 20355 | W9: =IF(AND(COUNTRY_INFO!J9>1,COUNTRY_INFO!J9<4), IF(V9/COUNTRY_INFO!F9*100<>0, IF(V9/COUNTRY_INFO!F9*100>100,100,V9/COUNTRY_INFO!F9*100), "-"),0) -> 100 | X9: =SUM(T9,V9) -> 26968 | Y9: =IF(AND(COUNTRY_INFO!J9>1,COUNTRY_INFO!J9<4), IF(S9/P9*100<>0, IF(X9/P9*100>100,100,X9/P9*100), "-"),0) -> 90.1608104 | Z9: =COUNTRY_INFO!O9 -> 19236.1 | AA9: 7451 | AB9: 7073 | AC9: =MAX('T1'!L9,'T2'!J9)+MAX('T1'!M9,'T2'!K9)+MAX('T1'!N9,'T2'!L9) -> 14524 | AD9: =IF(COUNTRY_INFO!K9=1,IF(COUNTRY_INFO!F9*0.33>MAX('T1'!M9,'T2'!K9),MAX('T1'!M9,'T2'!K9),COUNTRY_INFO!F9*0.33),IF(COUNTRY_INFO!K9=2,IF(COUNTRY_INFO!F9*0.5>MAX('T1'!M9,'T2'!K9),MAX('T1'!M9,'T2'!K9),COUNTRY_INFO!F9*0.5),IF(COUNTRY_INFO!K9=3,IF(COUNTRY_INFO!F9>MAX('T1'!M9,'T2'!K9),MAX('T1'!M9,'T2'!K9),COUNTRY_INFO!F9),0))) -> 10177.5 | AE9: =IF(AND(COUNTRY_INFO!K9>0,COUNTRY_INFO!K9<4),IF(Z9>0,IF(COUNTRY_INFO!K9=1, AD9/(COUNTRY_INFO!F9*0.33)*100, IF(COUNTRY_INFO!K9=2, AD9/(COUNTRY_INFO!F9*0.5)*100, IF(COUNTRY_INFO!K9=3, AD9/COUNTRY_INFO!F9*100))),"-"),0) -> 100 | AF9: =IF(COUNTRY_INFO!K9=2,IF(COUNTRY_INFO!G9*0.2>MAX('T1'!N9,'T2'!L9),MAX('T1'!N9,'T2'!L9),COUNTRY_INFO!G9*0.2),IF(COUNTRY_INFO!K9=3,IF(COUNTRY_INFO!G9>MAX('T1'!N9,'T2'!L9),MAX('T1'!N9,'T2'!L9),COUNTRY_INFO!G9),0)) -> 0 | AG9: =IF(AND(COUNTRY_INFO!K9>0,COUNTRY_INFO!K9<4),IF(Z9>0,IF(COUNTRY_INFO!K9=1, 0, IF(COUNTRY_INFO!K9=2, AF9/(COUNTRY_INFO!G9*0.2)*100, IF(COUNTRY_INFO!K9=3, AF9/COUNTRY_INFO!G9*100))),"-"),0) -> 0 | AH9: =SUM(AD9,AF9) -> 10177.5 | AI9: =IF(AND(COUNTRY_INFO!K9>0,COUNTRY_INFO!K9<4), IF(AC9/Z9*100<>0, IF(AH9/Z9*100>100,100,AH9/Z9*100), "-"),0) -> 52.90833381 | AK9: =IF(AND(D9<>0, D9<>"Inconnu",D9<>"Interrompu",D9<>"Non requis"),D9/COUNTRY_INFO!D9, 0) -> 1 | AL9: =IF(AND(J9<>0,J9<>"Inconnu",J9<>"Interrompu",J9<>"Non requis"),J9/COUNTRY_INFO!D9, 0) -> 0 | AM9: =IF(AND(P9<>0,P9<>"Inconnu",P9<>"Non requis"),P9/(COUNTRY_INFO!E9+COUNTRY_INFO!F9), 0) -> 1 | AN9: =IF(AND(Z9<>0,Z9<>"Inconnu",Z9<>"Non requis"),IF(COUNTRY_INFO!K9=1,1,IF(COUNTRY_INFO!K9=2,0.5*COUNTRY_INFO!F9/(0.5*COUNTRY_INFO!F9+0.2*COUNTRY_INFO!G9),IF(COUNTRY_INFO!K9=3,COUNTRY_INFO!F9/(COUNTRY_INFO!F9+COUNTRY_INFO!G9)))),0) -> 0.5290833381 | AO9: =IF(AND(Z9<>0,Z9<>"Inconnu",Z9<>"Non requis"),IF(COUNTRY_INFO!K9=1,0,IF(COUNTRY_INFO!K9=2,0.2*COUNTRY_INFO!G9/(0.5*COUNTRY_INFO!F9+0.2*COUNTRY_INFO!G9),IF(COUNTRY_INFO!K9=3,COUNTRY_INFO!G9/(COUNTRY_INFO!F9+COUNTRY_INFO!G9)))),0) -> 0.4709166619 | AP9: =MAX(COUNTRY_INFO!D9*AK9*PROFILE!$G$7,COUNTRY_INFO!D9*AL9*PROFILE!$G$7) -> 2485.244098 | AQ9: =MAX(COUNTRY_INFO!D9*AK9*PROFILE!$G$8,COUNTRY_INFO!D9*AL9*PROFILE!$G$8,COUNTRY_INFO!D9*AM9*PROFILE!$G$8) -> 9555.580675 | AR9: =MAX(COUNTRY_INFO!D9*AK9*PROFILE!$G$9,COUNTRY_INFO!D9*AL9*PROFILE!$G$9,COUNTRY_INFO!D9*AM9*PROFILE!$G$9,IF(AND(DISTRICT!Z9<>"Inconnu",Z9<>"Non requis"),COUNTRY_INFO!O9*DISTRICT!AN9,0)) -> 20354.74593 | AS9: =MAX(COUNTRY_INFO!D9*AK9*PROFILE!$G$10,COUNTRY_INFO!D9*AL9*PROFILE!$G$10,IF(AND(DISTRICT!Z9<>"Inconnu",Z9<>"Non requis"),COUNTRY_INFO!O9*DISTRICT!AO9,0)) -> 45293.4293 | AT9: =SUM(AP9:AS9) -> 77689 | AU9: =IF(COUNTIFS(AK9:AN9,">0")=0,0, IF(COUNTIFS(AK9:AN9,">0")<=IF(AND(OR(D9>=0,D9="Non requis",D9="Inconnu",D9="Interrompu"),D9>0,H9>0),1,0)+IF(AND(OR(J9>=0,J9="Non requis",J9="Inconnu",J9="Interrompu"),J9>0,N9>0),1,0)+IF(AND(OR(P9>=0,P9="Non requis",P9="Inconnu"),P9>0,X9>0),1,0)+IF(AND(OR(Z9>=0,Z9="Non requis",Z9="Inconnu"),Z9>0,AH9>0),1,0),"Y",0)) -> Y | AV9: =MAX('MDA2'!J9,'T1'!L9,'T2'!J9,T3_R1!K9,T3_R2!K9) -> 6613 | AW9: =MAX('MDA1'!K9,'MDA2'!K9,'MDA3'!I9,'MDA3'!L9,'T1'!M9,'T2'!K9,T3_R1!L9,T3_R2!L9) -> 21852 | AX9: =MAX('MDA1'!L9,'MDA2'!L9,'MDA3'!J9,'MDA3'!M9,'T1'!N9,'T2'!L9,T3_R1!M9,T3_R2!M9) -> 37873 | AY9: =SUM(AV9:AX9) -> 66338 | AZ9: =MAX('MDA2'!J9,T9) -> 6613 | BA9: =MAX('MDA1'!K9,'MDA2'!K9,'MDA3'!I9,'MDA3'!L9,V9,AD9) -> 21852 | BB9: =MAX('MDA1'!L9,'MDA2'!L9,'MDA3'!J9,'MDA3'!M9,AF9) -> 37873 | BC9: =IF(AT9<SUM(AZ9:BB9), AT9,SUM(AZ9:BB9)) -> 66338 | BD9: =IF(AT9<>0,BC9/AT9*100,0) -> 85.38917994
A10: =IF(COUNTRY_INFO!A10=0," ",COUNTRY_INFO!A10) -> STP | B10: =IF(COUNTRY_INFO!B10=0," ",COUNTRY_INFO!B10) -> ST | C10: =IF(COUNTRY_INFO!C10=0," ",COUNTRY_INFO!C10) -> Me-zochi | D10: =COUNTRY_INFO!L10 -> 50821 | E10: 16168 | F10: 17743 | G10: =MAX('MDA1'!M10,'MDA2'!M10) -> 33911 | H10: =IF(AND(COUNTRY_INFO!H10>0,COUNTRY_INFO!H10<4),IF(D10>MAX('MDA1'!M10,'MDA2'!M10),MAX('MDA1'!M10,'MDA2'!M10),D10),0) -> 33911 | I10: =IF(AND(COUNTRY_INFO!H10>0,COUNTRY_INFO!H10<4), IF(G10/D10*100<>0, IF(G10/D10*100>100,100,G10/D10*100), "-"),0) -> 66.72635328 | J10: =COUNTRY_INFO!M10 -> Non requis | M10: =MAX('MDA1'!M10,MAX('MDA3'!I10,'MDA3'!L10)+MAX('MDA3'!J10,'MDA3'!M10)) -> 0 | N10: =IF(AND(COUNTRY_INFO!I10>0,COUNTRY_INFO!I10<4),IF(J10>MAX('MDA1'!M10,MAX('MDA3'!I10,'MDA3'!L10)+MAX('MDA3'!J10,'MDA3'!M10)),MAX('MDA1'!M10,MAX('MDA3'!I10,'MDA3'!L10)+MAX('MDA3'!J10,'MDA3'!M10)),J10),0) -> 0 | O10: =IF(AND(COUNTRY_INFO!I10>0,COUNTRY_INFO!I10<4), IF(M10/J10*100<>0, IF(M10/J10*100>100,100,M10/J10*100), "-"),0) -> 0 | P10: =COUNTRY_INFO!N10 -> 19566 | Q10: 4253 | R10: 4026 | S10: =SUM(MAX('MDA2'!J10, 'T1'!L10, MAX(T3_R1!K10, T3_R2!K10)), MAX('MDA1'!K10, 'MDA2'!K10, 'T1'!M10, MAX(T3_R1!L10, T3_R2!L10)), MAX('MDA1'!L10, 'MDA2'!L10, 'T1'!N10, MAX(T3_R1!M10, T3_R2!M10))) -> 33911 | T10: =IF(AND(COUNTRY_INFO!J10>1,COUNTRY_INFO!J10<4),IF(COUNTRY_INFO!E10>MAX('MDA2'!J10,'T1'!L10,MAX(T3_R1!K10,T3_R2!K10)),MAX('MDA2'!J10,'T1'!L10,MAX(T3_R1!K10,T3_R2!K10)),COUNTRY_INFO!E10),0) -> 3505 | U10: =IF(AND(COUNTRY_INFO!J10>1,COUNTRY_INFO!J10<4), IF(T10/COUNTRY_INFO!E10*100<>0, IF(T10/COUNTRY_INFO!E10*100>100,100,T10/COUNTRY_INFO!E10*100), "-"),0) -> 56.07102864 | V10: =IF(AND(COUNTRY_INFO!J10>1,COUNTRY_INFO!J10<4),IF(COUNTRY_INFO!F10>MAX('MDA1'!K10,'MDA2'!K10,'T1'!M10,MAX(T3_R1!L10,T3_R2!L10)),MAX('MDA1'!K10,'MDA2'!K10,'T1'!M10,MAX(T3_R1!L10,T3_R2!L10)),COUNTRY_INFO!F10),0) -> 12810 | W10: =IF(AND(COUNTRY_INFO!J10>1,COUNTRY_INFO!J10<4), IF(V10/COUNTRY_INFO!F10*100<>0, IF(V10/COUNTRY_INFO!F10*100>100,100,V10/COUNTRY_INFO!F10*100), "-"),0) -> 96.20728502 | X10: =SUM(T10,V10) -> 16315 | Y10: =IF(AND(COUNTRY_INFO!J10>1,COUNTRY_INFO!J10<4), IF(S10/P10*100<>0, IF(X10/P10*100>100,100,X10/P10*100), "-"),0) -> 83.3844424 | Z10: =COUNTRY_INFO!O10 -> 12583.3 | AA10: 4253 | AB10: 4026 | AC10: =MAX('T1'!L10,'T2'!J10)+MAX('T1'!M10,'T2'!K10)+MAX('T1'!N10,'T2'!L10) -> 8279 | AD10: =IF(COUNTRY_INFO!K10=1,IF(COUNTRY_INFO!F10*0.33>MAX('T1'!M10,'T2'!K10),MAX('T1'!M10,'T2'!K10),COUNTRY_INFO!F10*0.33),IF(COUNTRY_INFO!K10=2,IF(COUNTRY_INFO!F10*0.5>MAX('T1'!M10,'T2'!K10),MAX('T1'!M10,'T2'!K10),COUNTRY_INFO!F10*0.5),IF(COUNTRY_INFO!K10=3,IF(COUNTRY_INFO!F10>MAX('T1'!M10,'T2'!K10),MAX('T1'!M10,'T2'!K10),COUNTRY_INFO!F10),0))) -> 6657.5 | AE10: =IF(AND(COUNTRY_INFO!K10>0,COUNTRY_INFO!K10<4),IF(Z10>0,IF(COUNTRY_INFO!K10=1, AD10/(COUNTRY_INFO!F10*0.33)*100, IF(COUNTRY_INFO!K10=2, AD10/(COUNTRY_INFO!F10*0.5)*100, IF(COUNTRY_INFO!K10=3, AD10/COUNTRY_INFO!F10*100))),"-"),0) -> 100 | AF10: =IF(COUNTRY_INFO!K10=2,IF(COUNTRY_INFO!G10*0.2>MAX('T1'!N10,'T2'!L10),MAX('T1'!N10,'T2'!L10),COUNTRY_INFO!G10*0.2),IF(COUNTRY_INFO!K10=3,IF(COUNTRY_INFO!G10>MAX('T1'!N10,'T2'!L10),MAX('T1'!N10,'T2'!L10),COUNTRY_INFO!G10),0)) -> 0 | AG10: =IF(AND(COUNTRY_INFO!K10>0,COUNTRY_INFO!K10<4),IF(Z10>0,IF(COUNTRY_INFO!K10=1, 0, IF(COUNTRY_INFO!K10=2, AF10/(COUNTRY_INFO!G10*0.2)*100, IF(COUNTRY_INFO!K10=3, AF10/COUNTRY_INFO!G10*100))),"-"),0) -> 0 | AH10: =SUM(AD10,AF10) -> 6657.5 | AI10: =IF(AND(COUNTRY_INFO!K10>0,COUNTRY_INFO!K10<4), IF(AC10/Z10*100<>0, IF(AH10/Z10*100>100,100,AH10/Z10*100), "-"),0) -> 52.90742492 | AK10: =IF(AND(D10<>0, D10<>"Inconnu",D10<>"Interrompu",D10<>"Non requis"),D10/COUNTRY_INFO!D10, 0) -> 1 | AL10: =IF(AND(J10<>0,J10<>"Inconnu",J10<>"Interrompu",J10<>"Non requis"),J10/COUNTRY_INFO!D10, 0) -> 0 | AM10: =IF(AND(P10<>0,P10<>"Inconnu",P10<>"Non requis"),P10/(COUNTRY_INFO!E10+COUNTRY_INFO!F10), 0) -> 1 | AN10: =IF(AND(Z10<>0,Z10<>"Inconnu",Z10<>"Non requis"),IF(COUNTRY_INFO!K10=1,1,IF(COUNTRY_INFO!K10=2,0.5*COUNTRY_INFO!F10/(0.5*COUNTRY_INFO!F10+0.2*COUNTRY_INFO!G10),IF(COUNTRY_INFO!K10=3,COUNTRY_INFO!F10/(COUNTRY_INFO!F10+COUNTRY_INFO!G10)))),0) -> 0.5290742492 | AO10: =IF(AND(Z10<>0,Z10<>"Inconnu",Z10<>"Non requis"),IF(COUNTRY_INFO!K10=1,0,IF(COUNTRY_INFO!K10=2,0.2*COUNTRY_INFO!G10/(0.5*COUNTRY_INFO!F10+0.2*COUNTRY_INFO!G10),IF(COUNTRY_INFO!K10=3,COUNTRY_INFO!G10/(COUNTRY_INFO!F10+COUNTRY_INFO!G10)))),0) -> 0.4709257508 | AP10: =MAX(COUNTRY_INFO!D10*AK10*PROFILE!$G$7,COUNTRY_INFO!D10*AL10*PROFILE!$G$7) -> 1625.74612 | AQ10: =MAX(COUNTRY_INFO!D10*AK10*PROFILE!$G$8,COUNTRY_INFO!D10*AL10*PROFILE!$G$8,COUNTRY_INFO!D10*AM10*PROFILE!$G$8) -> 6250.874197 | AR10: =MAX(COUNTRY_INFO!D10*AK10*PROFILE!$G$9,COUNTRY_INFO!D10*AL10*PROFILE!$G$9,COUNTRY_INFO!D10*AM10*PROFILE!$G$9,IF(AND(DISTRICT!Z10<>"Inconnu",Z10<>"Non requis"),COUNTRY_INFO!O10*DISTRICT!AN10,0)) -> 13315.2511 | AS10: =MAX(COUNTRY_INFO!D10*AK10*PROFILE!$G$10,COUNTRY_INFO!D10*AL10*PROFILE!$G$10,IF(AND(DISTRICT!Z10<>"Inconnu",Z10<>"Non requis"),COUNTRY_INFO!O10*DISTRICT!AO10,0)) -> 29629.12858 | AT10: =SUM(AP10:AS10) -> 50821 | AU10: Y | AV10: =MAX('MDA2'!J10,'T1'!L10,'T2'!J10,T3_R1!K10,T3_R2!K10) -> 3505 | AW10: =MAX('MDA1'!K10,'MDA2'!K10,'MDA3'!I10,'MDA3'!L10,'T1'!M10,'T2'!K10,T3_R1!L10,T3_R2!L10) -> 12810 | AX10: =MAX('MDA1'!L10,'MDA2'!L10,'MDA3'!J10,'MDA3'!M10,'T1'!N10,'T2'!L10,T3_R1!M10,T3_R2!M10) -> 17596 | AY10: =SUM(AV10:AX10) -> 33911 | AZ10: =MAX('MDA2'!J10,T10) -> 3505 | BA10: =MAX('MDA1'!K10,'MDA2'!K10,'MDA3'!I10,'MDA3'!L10,V10,AD10) -> 12810 | BB10: =MAX('MDA1'!L10,'MDA2'!L10,'MDA3'!J10,'MDA3'!M10,AF10) -> 17596 | BC10: 33911 | BD10: 66.72635328
A11: =IF(COUNTRY_INFO!A11=0," ",COUNTRY_INFO!A11) -> STP | B11: =IF(COUNTRY_INFO!B11=0," ",COUNTRY_INFO!B11) -> ST | C11: =IF(COUNTRY_INFO!C11=0," ",COUNTRY_INFO!C11) -> Lobata | D11: =COUNTRY_INFO!L11 -> 21988 | E11: 8627 | F11: 10008 | G11: =MAX('MDA1'!M11,'MDA2'!M11) -> 18635 | H11: =IF(AND(COUNTRY_INFO!H11>0,COUNTRY_INFO!H11<4),IF(D11>MAX('MDA1'!M11,'MDA2'!M11),MAX('MDA1'!M11,'MDA2'!M11),D11),0) -> 18635 | I11: =IF(AND(COUNTRY_INFO!H11>0,COUNTRY_INFO!H11<4), IF(G11/D11*100<>0, IF(G11/D11*100>100,100,G11/D11*100), "-"),0) -> 84.75077315 | J11: =COUNTRY_INFO!M11 -> Non requis | M11: =MAX('MDA1'!M11,MAX('MDA3'!I11,'MDA3'!L11)+MAX('MDA3'!J11,'MDA3'!M11)) -> 0 | N11: =IF(AND(COUNTRY_INFO!I11>0,COUNTRY_INFO!I11<4),IF(J11>MAX('MDA1'!M11,MAX('MDA3'!I11,'MDA3'!L11)+MAX('MDA3'!J11,'MDA3'!M11)),MAX('MDA1'!M11,MAX('MDA3'!I11,'MDA3'!L11)+MAX('MDA3'!J11,'MDA3'!M11)),J11),0) -> 0 | O11: =IF(AND(COUNTRY_INFO!I11>0,COUNTRY_INFO!I11<4), IF(M11/J11*100<>0, IF(M11/J11*100>100,100,M11/J11*100), "-"),0) -> 0 | P11: =COUNTRY_INFO!N11 -> 8466 | Q11: 1776 | R11: 1603 | S11: =SUM(MAX('MDA2'!J11, 'T1'!L11, MAX(T3_R1!K11, T3_R2!K11)), MAX('MDA1'!K11, 'MDA2'!K11, 'T1'!M11, MAX(T3_R1!L11, T3_R2!L11)), MAX('MDA1'!L11, 'MDA2'!L11, 'T1'!N11, MAX(T3_R1!M11, T3_R2!M11))) -> 18635 | T11: =IF(AND(COUNTRY_INFO!J11>1,COUNTRY_INFO!J11<4),IF(COUNTRY_INFO!E11>MAX('MDA2'!J11,'T1'!L11,MAX(T3_R1!K11,T3_R2!K11)),MAX('MDA2'!J11,'T1'!L11,MAX(T3_R1!K11,T3_R2!K11)),COUNTRY_INFO!E11),0) -> 2011 | U11: =IF(AND(COUNTRY_INFO!J11>1,COUNTRY_INFO!J11<4), IF(T11/COUNTRY_INFO!E11*100<>0, IF(T11/COUNTRY_INFO!E11*100>100,100,T11/COUNTRY_INFO!E11*100), "-"),0) -> 74.34380776 | V11: =IF(AND(COUNTRY_INFO!J11>1,COUNTRY_INFO!J11<4),IF(COUNTRY_INFO!F11>MAX('MDA1'!K11,'MDA2'!K11,'T1'!M11,MAX(T3_R1!L11,T3_R2!L11)),MAX('MDA1'!K11,'MDA2'!K11,'T1'!M11,MAX(T3_R1!L11,T3_R2!L11)),COUNTRY_INFO!F11),0) -> 5761 | W11: =IF(AND(COUNTRY_INFO!J11>1,COUNTRY_INFO!J11<4), IF(V11/COUNTRY_INFO!F11*100<>0, IF(V11/COUNTRY_INFO!F11*100>100,100,V11/COUNTRY_INFO!F11*100), "-"),0) -> 100 | X11: 7772 | Y11: =IF(AND(COUNTRY_INFO!J11>1,COUNTRY_INFO!J11<4), IF(S11/P11*100<>0, IF(X11/P11*100>100,100,X11/P11*100), "-"),0) -> 91.80250413 | Z11: =COUNTRY_INFO!O11 -> 1901.13 | AC11: =MAX('T1'!L11,'T2'!J11)+MAX('T1'!M11,'T2'!K11)+MAX('T1'!N11,'T2'!L11) -> 0 | AD11: =IF(COUNTRY_INFO!K11=1,IF(COUNTRY_INFO!F11*0.33>MAX('T1'!M11,'T2'!K11),MAX('T1'!M11,'T2'!K11),COUNTRY_INFO!F11*0.33),IF(COUNTRY_INFO!K11=2,IF(COUNTRY_INFO!F11*0.5>MAX('T1'!M11,'T2'!K11),MAX('T1'!M11,'T2'!K11),COUNTRY_INFO!F11*0.5),IF(COUNTRY_INFO!K11=3,IF(COUNTRY_INFO!F11>MAX('T1'!M11,'T2'!K11),MAX('T1'!M11,'T2'!K11),COUNTRY_INFO!F11),0))) -> 0 | AE11: =IF(AND(COUNTRY_INFO!K11>0,COUNTRY_INFO!K11<4),IF(Z11>0,IF(COUNTRY_INFO!K11=1, AD11/(COUNTRY_INFO!F11*0.33)*100, IF(COUNTRY_INFO!K11=2, AD11/(COUNTRY_INFO!F11*0.5)*100, IF(COUNTRY_INFO!K11=3, AD11/COUNTRY_INFO!F11*100))),"-"),0) -> 0 | AF11: =IF(COUNTRY_INFO!K11=2,IF(COUNTRY_INFO!G11*0.2>MAX('T1'!N11,'T2'!L11),MAX('T1'!N11,'T2'!L11),COUNTRY_INFO!G11*0.2),IF(COUNTRY_INFO!K11=3,IF(COUNTRY_INFO!G11>MAX('T1'!N11,'T2'!L11),MAX('T1'!N11,'T2'!L11),COUNTRY_INFO!G11),0)) -> 0 | AG11: =IF(AND(COUNTRY_INFO!K11>0,COUNTRY_INFO!K11<4),IF(Z11>0,IF(COUNTRY_INFO!K11=1, 0, IF(COUNTRY_INFO!K11=2, AF11/(COUNTRY_INFO!G11*0.2)*100, IF(COUNTRY_INFO!K11=3, AF11/COUNTRY_INFO!G11*100))),"-"),0) -> 0 | AH11: 0 | AI11: =IF(AND(COUNTRY_INFO!K11>0,COUNTRY_INFO!K11<4), IF(AC11/Z11*100<>0, IF(AH11/Z11*100>100,100,AH11/Z11*100), "-"),0) -> - | AK11: =IF(AND(D11<>0, D11<>"Inconnu",D11<>"Interrompu",D11<>"Non requis"),D11/COUNTRY_INFO!D11, 0) -> 1 | AL11: =IF(AND(J11<>0,J11<>"Inconnu",J11<>"Interrompu",J11<>"Non requis"),J11/COUNTRY_INFO!D11, 0) -> 0 | AM11: =IF(AND(P11<>0,P11<>"Inconnu",P11<>"Non requis"),P11/(COUNTRY_INFO!E11+COUNTRY_INFO!F11), 0) -> 1 | AN11: =IF(AND(Z11<>0,Z11<>"Inconnu",Z11<>"Non requis"),IF(COUNTRY_INFO!K11=1,1,IF(COUNTRY_INFO!K11=2,0.5*COUNTRY_INFO!F11/(0.5*COUNTRY_INFO!F11+0.2*COUNTRY_INFO!G11),IF(COUNTRY_INFO!K11=3,COUNTRY_INFO!F11/(COUNTRY_INFO!F11+COUNTRY_INFO!G11)))),0) -> 1 | AO11: =IF(AND(Z11<>0,Z11<>"Inconnu",Z11<>"Non requis"),IF(COUNTRY_INFO!K11=1,0,IF(COUNTRY_INFO!K11=2,0.2*COUNTRY_INFO!G11/(0.5*COUNTRY_INFO!F11+0.2*COUNTRY_INFO!G11),IF(COUNTRY_INFO!K11=3,COUNTRY_INFO!G11/(COUNTRY_INFO!F11+COUNTRY_INFO!G11)))),0) -> 0 | AP11: =MAX(COUNTRY_INFO!D11*AK11*PROFILE!$G$7,COUNTRY_INFO!D11*AL11*PROFILE!$G$7) -> 703.3884748 | AQ11: =MAX(COUNTRY_INFO!D11*AK11*PROFILE!$G$8,COUNTRY_INFO!D11*AL11*PROFILE!$G$8,COUNTRY_INFO!D11*AM11*PROFILE!$G$8) -> 2704.476926 | AR11: =MAX(COUNTRY_INFO!D11*AK11*PROFILE!$G$9,COUNTRY_INFO!D11*AL11*PROFILE!$G$9,COUNTRY_INFO!D11*AM11*PROFILE!$G$9,IF(AND(DISTRICT!Z11<>"Inconnu",Z11<>"Non requis"),COUNTRY_INFO!O11*DISTRICT!AN11,0)) -> 5760.920509 | AS11: =MAX(COUNTRY_INFO!D11*AK11*PROFILE!$G$10,COUNTRY_INFO!D11*AL11*PROFILE!$G$10,IF(AND(DISTRICT!Z11<>"Inconnu",Z11<>"Non requis"),COUNTRY_INFO!O11*DISTRICT!AO11,0)) -> 12819.21409 | AT11: 21988 | AU11: 0 | AV11: =MAX('MDA2'!J11,'T1'!L11,'T2'!J11,T3_R1!K11,T3_R2!K11) -> 2011 | AW11: =MAX('MDA1'!K11,'MDA2'!K11,'MDA3'!I11,'MDA3'!L11,'T1'!M11,'T2'!K11,T3_R1!L11,T3_R2!L11) -> 6813 | AX11: =MAX('MDA1'!L11,'MDA2'!L11,'MDA3'!J11,'MDA3'!M11,'T1'!N11,'T2'!L11,T3_R1!M11,T3_R2!M11) -> 9811 | AY11: 18635 | AZ11: =MAX('MDA2'!J11,T11) -> 2011 | BA11: =MAX('MDA1'!K11,'MDA2'!K11,'MDA3'!I11,'MDA3'!L11,V11,AD11) -> 6813 | BB11: =MAX('MDA1'!L11,'MDA2'!L11,'MDA3'!J11,'MDA3'!M11,AF11) -> 9811 | BC11: 18635 | BD11: 84.75077315
A12: =IF(COUNTRY_INFO!A12=0," ",COUNTRY_INFO!A12) -> STP | B12: =IF(COUNTRY_INFO!B12=0," ",COUNTRY_INFO!B12) -> ST | C12: =IF(COUNTRY_INFO!C12=0," ",COUNTRY_INFO!C12) -> Cantagalo | D12: =COUNTRY_INFO!L12 -> 19394 | E12: 7458 | F12: 7333 | G12: =MAX('MDA1'!M12,'MDA2'!M12) -> 14791 | H12: =IF(AND(COUNTRY_INFO!H12>0,COUNTRY_INFO!H12<4),IF(D12>MAX('MDA1'!M12,'MDA2'!M12),MAX('MDA1'!M12,'MDA2'!M12),D12),0) -> 14791 | I12: =IF(AND(COUNTRY_INFO!H12>0,COUNTRY_INFO!H12<4), IF(G12/D12*100<>0, IF(G12/D12*100>100,100,G12/D12*100), "-"),0) -> 76.26585542 | J12: =COUNTRY_INFO!M12 -> Non requis | M12: =MAX('MDA1'!M12,MAX('MDA3'!I12,'MDA3'!L12)+MAX('MDA3'!J12,'MDA3'!M12)) -> 0 | N12: =IF(AND(COUNTRY_INFO!I12>0,COUNTRY_INFO!I12<4),IF(J12>MAX('MDA1'!M12,MAX('MDA3'!I12,'MDA3'!L12)+MAX('MDA3'!J12,'MDA3'!M12)),MAX('MDA1'!M12,MAX('MDA3'!I12,'MDA3'!L12)+MAX('MDA3'!J12,'MDA3'!M12)),J12),0) -> 0 | O12: =IF(AND(COUNTRY_INFO!I12>0,COUNTRY_INFO!I12<4), IF(M12/J12*100<>0, IF(M12/J12*100>100,100,M12/J12*100), "-"),0) -> 0 | P12: =COUNTRY_INFO!N12 -> 7466 | Q12: 1667 | R12: 1641 | S12: =SUM(MAX('MDA2'!J12, 'T1'!L12, MAX(T3_R1!K12, T3_R2!K12)), MAX('MDA1'!K12, 'MDA2'!K12, 'T1'!M12, MAX(T3_R1!L12, T3_R2!L12)), MAX('MDA1'!L12, 'MDA2'!L12, 'T1'!N12, MAX(T3_R1!M12, T3_R2!M12))) -> 14791 | T12: =IF(AND(COUNTRY_INFO!J12>1,COUNTRY_INFO!J12<4),IF(COUNTRY_INFO!E12>MAX('MDA2'!J12,'T1'!L12,MAX(T3_R1!K12,T3_R2!K12)),MAX('MDA2'!J12,'T1'!L12,MAX(T3_R1!K12,T3_R2!K12)),COUNTRY_INFO!E12),0) -> 1561 | U12: =IF(AND(COUNTRY_INFO!J12>1,COUNTRY_INFO!J12<4), IF(T12/COUNTRY_INFO!E12*100<>0, IF(T12/COUNTRY_INFO!E12*100>100,100,T12/COUNTRY_INFO!E12*100), "-"),0) -> 65.45073375 | V12: =IF(AND(COUNTRY_INFO!J12>1,COUNTRY_INFO!J12<4),IF(COUNTRY_INFO!F12>MAX('MDA1'!K12,'MDA2'!K12,'T1'!M12,MAX(T3_R1!L12,T3_R2!L12)),MAX('MDA1'!K12,'MDA2'!K12,'T1'!M12,MAX(T3_R1!L12,T3_R2!L12)),COUNTRY_INFO!F12),0) -> 5031 | W12: =IF(AND(COUNTRY_INFO!J12>1,COUNTRY_INFO!J12<4), IF(V12/COUNTRY_INFO!F12*100<>0, IF(V12/COUNTRY_INFO!F12*100>100,100,V12/COUNTRY_INFO!F12*100), "-"),0) -> 99.01594174 | X12: 6592 | Y12: =IF(AND(COUNTRY_INFO!J12>1,COUNTRY_INFO!J12<4), IF(S12/P12*100<>0, IF(X12/P12*100>100,100,X12/P12*100), "-"),0) -> 88.29359764 | Z12: =COUNTRY_INFO!O12 -> 1676.73 | AC12: =MAX('T1'!L12,'T2'!J12)+MAX('T1'!M12,'T2'!K12)+MAX('T1'!N12,'T2'!L12) -> 0 | AD12: =IF(COUNTRY_INFO!K12=1,IF(COUNTRY_INFO!F12*0.33>MAX('T1'!M12,'T2'!K12),MAX('T1'!M12,'T2'!K12),COUNTRY_INFO!F12*0.33),IF(COUNTRY_INFO!K12=2,IF(COUNTRY_INFO!F12*0.5>MAX('T1'!M12,'T2'!K12),MAX('T1'!M12,'T2'!K12),COUNTRY_INFO!F12*0.5),IF(COUNTRY_INFO!K12=3,IF(COUNTRY_INFO!F12>MAX('T1'!M12,'T2'!K12),MAX('T1'!M12,'T2'!K12),COUNTRY_INFO!F12),0))) -> 0 | AE12: =IF(AND(COUNTRY_INFO!K12>0,COUNTRY_INFO!K12<4),IF(Z12>0,IF(COUNTRY_INFO!K12=1, AD12/(COUNTRY_INFO!F12*0.33)*100, IF(COUNTRY_INFO!K12=2, AD12/(COUNTRY_INFO!F12*0.5)*100, IF(COUNTRY_INFO!K12=3, AD12/COUNTRY_INFO!F12*100))),"-"),0) -> 0 | AF12: =IF(COUNTRY_INFO!K12=2,IF(COUNTRY_INFO!G12*0.2>MAX('T1'!N12,'T2'!L12),MAX('T1'!N12,'T2'!L12),COUNTRY_INFO!G12*0.2),IF(COUNTRY_INFO!K12=3,IF(COUNTRY_INFO!G12>MAX('T1'!N12,'T2'!L12),MAX('T1'!N12,'T2'!L12),COUNTRY_INFO!G12),0)) -> 0 | AG12: =IF(AND(COUNTRY_INFO!K12>0,COUNTRY_INFO!K12<4),IF(Z12>0,IF(COUNTRY_INFO!K12=1, 0, IF(COUNTRY_INFO!K12=2, AF12/(COUNTRY_INFO!G12*0.2)*100, IF(COUNTRY_INFO!K12=3, AF12/COUNTRY_INFO!G12*100))),"-"),0) -> 0 | AH12: 0 | AI12: =IF(AND(COUNTRY_INFO!K12>0,COUNTRY_INFO!K12<4), IF(AC12/Z12*100<>0, IF(AH12/Z12*100>100,100,AH12/Z12*100), "-"),0) -> - | AK12: =IF(AND(D12<>0, D12<>"Inconnu",D12<>"Interrompu",D12<>"Non requis"),D12/COUNTRY_INFO!D12, 0) -> 1 | AL12: =IF(AND(J12<>0,J12<>"Inconnu",J12<>"Interrompu",J12<>"Non requis"),J12/COUNTRY_INFO!D12, 0) -> 0 | AM12: =IF(AND(P12<>0,P12<>"Inconnu",P12<>"Non requis"),P12/(COUNTRY_INFO!E12+COUNTRY_INFO!F12), 0) -> 1 | AN12: =IF(AND(Z12<>0,Z12<>"Inconnu",Z12<>"Non requis"),IF(COUNTRY_INFO!K12=1,1,IF(COUNTRY_INFO!K12=2,0.5*COUNTRY_INFO!F12/(0.5*COUNTRY_INFO!F12+0.2*COUNTRY_INFO!G12),IF(COUNTRY_INFO!K12=3,COUNTRY_INFO!F12/(COUNTRY_INFO!F12+COUNTRY_INFO!G12)))),0) -> 1 | AO12: =IF(AND(Z12<>0,Z12<>"Inconnu",Z12<>"Non requis"),IF(COUNTRY_INFO!K12=1,0,IF(COUNTRY_INFO!K12=2,0.2*COUNTRY_INFO!G12/(0.5*COUNTRY_INFO!F12+0.2*COUNTRY_INFO!G12),IF(COUNTRY_INFO!K12=3,COUNTRY_INFO!G12/(COUNTRY_INFO!F12+COUNTRY_INFO!G12)))),0) -> 0 | AP12: =MAX(COUNTRY_INFO!D12*AK12*PROFILE!$G$7,COUNTRY_INFO!D12*AL12*PROFILE!$G$7) -> 620.4073167 | AQ12: =MAX(COUNTRY_INFO!D12*AK12*PROFILE!$G$8,COUNTRY_INFO!D12*AL12*PROFILE!$G$8,COUNTRY_INFO!D12*AM12*PROFILE!$G$8) -> 2385.420479 | AR12: =MAX(COUNTRY_INFO!D12*AK12*PROFILE!$G$9,COUNTRY_INFO!D12*AL12*PROFILE!$G$9,COUNTRY_INFO!D12*AM12*PROFILE!$G$9,IF(AND(DISTRICT!Z12<>"Inconnu",Z12<>"Non requis"),COUNTRY_INFO!O12*DISTRICT!AN12,0)) -> 5081.284899 | AS12: =MAX(COUNTRY_INFO!D12*AK12*PROFILE!$G$10,COUNTRY_INFO!D12*AL12*PROFILE!$G$10,IF(AND(DISTRICT!Z12<>"Inconnu",Z12<>"Non requis"),COUNTRY_INFO!O12*DISTRICT!AO12,0)) -> 11306.88731 | AT12: 19394 | AU12: 0 | AV12: =MAX('MDA2'!J12,'T1'!L12,'T2'!J12,T3_R1!K12,T3_R2!K12) -> 1561 | AW12: =MAX('MDA1'!K12,'MDA2'!K12,'MDA3'!I12,'MDA3'!L12,'T1'!M12,'T2'!K12,T3_R1!L12,T3_R2!L12) -> 5031 | AX12: =MAX('MDA1'!L12,'MDA2'!L12,'MDA3'!J12,'MDA3'!M12,'T1'!N12,'T2'!L12,T3_R1!M12,T3_R2!M12) -> 8199 | AY12: 14791 | AZ12: =MAX('MDA2'!J12,T12) -> 1561 | BA12: =MAX('MDA1'!K12,'MDA2'!K12,'MDA3'!I12,'MDA3'!L12,V12,AD12) -> 5031 | BB12: =MAX('MDA1'!L12,'MDA2'!L12,'MDA3'!J12,'MDA3'!M12,AF12) -> 8199 | BC12: 14791 | BD12: 76.26585542
A13: =IF(COUNTRY_INFO!A13=0," ",COUNTRY_INFO!A13) -> STP | B13: =IF(COUNTRY_INFO!B13=0," ",COUNTRY_INFO!B13) -> ST | C13: =IF(COUNTRY_INFO!C13=0," ",COUNTRY_INFO!C13) -> Lemba | D13: =COUNTRY_INFO!L13 -> 16272 | E13: 7348 | F13: 6844 | G13: =MAX('MDA1'!M13,'MDA2'!M13) -> 14192 | H13: =IF(AND(COUNTRY_INFO!H13>0,COUNTRY_INFO!H13<4),IF(D13>MAX('MDA1'!M13,'MDA2'!M13),MAX('MDA1'!M13,'MDA2'!M13),D13),0) -> 14192 | I13: =IF(AND(COUNTRY_INFO!H13>0,COUNTRY_INFO!H13<4), IF(G13/D13*100<>0, IF(G13/D13*100>100,100,G13/D13*100), "-"),0) -> 87.2173058 | J13: =COUNTRY_INFO!M13 -> Non requis | M13: =MAX('MDA1'!M13,MAX('MDA3'!I13,'MDA3'!L13)+MAX('MDA3'!J13,'MDA3'!M13)) -> 0 | N13: =IF(AND(COUNTRY_INFO!I13>0,COUNTRY_INFO!I13<4),IF(J13>MAX('MDA1'!M13,MAX('MDA3'!I13,'MDA3'!L13)+MAX('MDA3'!J13,'MDA3'!M13)),MAX('MDA1'!M13,MAX('MDA3'!I13,'MDA3'!L13)+MAX('MDA3'!J13,'MDA3'!M13)),J13),0) -> 0 | O13: =IF(AND(COUNTRY_INFO!I13>0,COUNTRY_INFO!I13<4), IF(M13/J13*100<>0, IF(M13/J13*100>100,100,M13/J13*100), "-"),0) -> 0 | P13: =COUNTRY_INFO!N13 -> 6264 | Q13: 1638 | R13: 1543 | S13: =SUM(MAX('MDA2'!J13, 'T1'!L13, MAX(T3_R1!K13, T3_R2!K13)), MAX('MDA1'!K13, 'MDA2'!K13, 'T1'!M13, MAX(T3_R1!L13, T3_R2!L13)), MAX('MDA1'!L13, 'MDA2'!L13, 'T1'!N13, MAX(T3_R1!M13, T3_R2!M13))) -> 14192 | T13: =IF(AND(COUNTRY_INFO!J13>1,COUNTRY_INFO!J13<4),IF(COUNTRY_INFO!E13>MAX('MDA2'!J13,'T1'!L13,MAX(T3_R1!K13,T3_R2!K13)),MAX('MDA2'!J13,'T1'!L13,MAX(T3_R1!K13,T3_R2!K13)),COUNTRY_INFO!E13),0) -> 1467 | U13: =IF(AND(COUNTRY_INFO!J13>1,COUNTRY_INFO!J13<4), IF(T13/COUNTRY_INFO!E13*100<>0, IF(T13/COUNTRY_INFO!E13*100>100,100,T13/COUNTRY_INFO!E13*100), "-"),0) -> 73.31334333 | V13: =IF(AND(COUNTRY_INFO!J13>1,COUNTRY_INFO!J13<4),IF(COUNTRY_INFO!F13>MAX('MDA1'!K13,'MDA2'!K13,'T1'!M13,MAX(T3_R1!L13,T3_R2!L13)),MAX('MDA1'!K13,'MDA2'!K13,'T1'!M13,MAX(T3_R1!L13,T3_R2!L13)),COUNTRY_INFO!F13),0) -> 4263 | W13: =IF(AND(COUNTRY_INFO!J13>1,COUNTRY_INFO!J13<4), IF(V13/COUNTRY_INFO!F13*100<>0, IF(V13/COUNTRY_INFO!F13*100>100,100,V13/COUNTRY_INFO!F13*100), "-"),0) -> 100 | X13: 5730 | Y13: =IF(AND(COUNTRY_INFO!J13>1,COUNTRY_INFO!J13<4), IF(S13/P13*100<>0, IF(X13/P13*100>100,100,X13/P13*100), "-"),0) -> 91.47509579 | Z13: =COUNTRY_INFO!O13 -> 1406.79 | AC13: =MAX('T1'!L13,'T2'!J13)+MAX('T1'!M13,'T2'!K13)+MAX('T1'!N13,'T2'!L13) -> 0 | AD13: =IF(COUNTRY_INFO!K13=1,IF(COUNTRY_INFO!F13*0.33>MAX('T1'!M13,'T2'!K13),MAX('T1'!M13,'T2'!K13),COUNTRY_INFO!F13*0.33),IF(COUNTRY_INFO!K13=2,IF(COUNTRY_INFO!F13*0.5>MAX('T1'!M13,'T2'!K13),MAX('T1'!M13,'T2'!K13),COUNTRY_INFO!F13*0.5),IF(COUNTRY_INFO!K13=3,IF(COUNTRY_INFO!F13>MAX('T1'!M13,'T2'!K13),MAX('T1'!M13,'T2'!K13),COUNTRY_INFO!F13),0))) -> 0 | AE13: =IF(AND(COUNTRY_INFO!K13>0,COUNTRY_INFO!K13<4),IF(Z13>0,IF(COUNTRY_INFO!K13=1, AD13/(COUNTRY_INFO!F13*0.33)*100, IF(COUNTRY_INFO!K13=2, AD13/(COUNTRY_INFO!F13*0.5)*100, IF(COUNTRY_INFO!K13=3, AD13/COUNTRY_INFO!F13*100))),"-"),0) -> 0 | AF13: =IF(COUNTRY_INFO!K13=2,IF(COUNTRY_INFO!G13*0.2>MAX('T1'!N13,'T2'!L13),MAX('T1'!N13,'T2'!L13),COUNTRY_INFO!G13*0.2),IF(COUNTRY_INFO!K13=3,IF(COUNTRY_INFO!G13>MAX('T1'!N13,'T2'!L13),MAX('T1'!N13,'T2'!L13),COUNTRY_INFO!G13),0)) -> 0 | AG13: =IF(AND(COUNTRY_INFO!K13>0,COUNTRY_INFO!K13<4),IF(Z13>0,IF(COUNTRY_INFO!K13=1, 0, IF(COUNTRY_INFO!K13=2, AF13/(COUNTRY_INFO!G13*0.2)*100, IF(COUNTRY_INFO!K13=3, AF13/COUNTRY_INFO!G13*100))),"-"),0) -> 0 | AH13: 0 | AI13: =IF(AND(COUNTRY_INFO!K13>0,COUNTRY_INFO!K13<4), IF(AC13/Z13*100<>0, IF(AH13/Z13*100>100,100,AH13/Z13*100), "-"),0) -> - | AK13: =IF(AND(D13<>0, D13<>"Inconnu",D13<>"Interrompu",D13<>"Non requis"),D13/COUNTRY_INFO!D13, 0) -> 1 | AL13: =IF(AND(J13<>0,J13<>"Inconnu",J13<>"Interrompu",J13<>"Non requis"),J13/COUNTRY_INFO!D13, 0) -> 0 | AM13: =IF(AND(P13<>0,P13<>"Inconnu",P13<>"Non requis"),P13/(COUNTRY_INFO!E13+COUNTRY_INFO!F13), 0) -> 1 | AN13: =IF(AND(Z13<>0,Z13<>"Inconnu",Z13<>"Non requis"),IF(COUNTRY_INFO!K13=1,1,IF(COUNTRY_INFO!K13=2,0.5*COUNTRY_INFO!F13/(0.5*COUNTRY_INFO!F13+0.2*COUNTRY_INFO!G13),IF(COUNTRY_INFO!K13=3,COUNTRY_INFO!F13/(COUNTRY_INFO!F13+COUNTRY_INFO!G13)))),0) -> 1 | AO13: =IF(AND(Z13<>0,Z13<>"Inconnu",Z13<>"Non requis"),IF(COUNTRY_INFO!K13=1,0,IF(COUNTRY_INFO!K13=2,0.2*COUNTRY_INFO!G13/(0.5*COUNTRY_INFO!F13+0.2*COUNTRY_INFO!G13),IF(COUNTRY_INFO!K13=3,COUNTRY_INFO!G13/(COUNTRY_INFO!F13+COUNTRY_INFO!G13)))),0) -> 0 | AP13: =MAX(COUNTRY_INFO!D13*AK13*PROFILE!$G$7,COUNTRY_INFO!D13*AL13*PROFILE!$G$7) -> 520.5356222 | AQ13: =MAX(COUNTRY_INFO!D13*AK13*PROFILE!$G$8,COUNTRY_INFO!D13*AL13*PROFILE!$G$8,COUNTRY_INFO!D13*AM13*PROFILE!$G$8) -> 2001.421163 | AR13: =MAX(COUNTRY_INFO!D13*AK13*PROFILE!$G$9,COUNTRY_INFO!D13*AL13*PROFILE!$G$9,COUNTRY_INFO!D13*AM13*PROFILE!$G$9,IF(AND(DISTRICT!Z13<>"Inconnu",Z13<>"Non requis"),COUNTRY_INFO!O13*DISTRICT!AN13,0)) -> 4263.311739 | AS13: =MAX(COUNTRY_INFO!D13*AK13*PROFILE!$G$10,COUNTRY_INFO!D13*AL13*PROFILE!$G$10,IF(AND(DISTRICT!Z13<>"Inconnu",Z13<>"Non requis"),COUNTRY_INFO!O13*DISTRICT!AO13,0)) -> 9486.731475 | AT13: 16272 | AU13: 0 | AV13: =MAX('MDA2'!J13,'T1'!L13,'T2'!J13,T3_R1!K13,T3_R2!K13) -> 1467 | AW13: =MAX('MDA1'!K13,'MDA2'!K13,'MDA3'!I13,'MDA3'!L13,'T1'!M13,'T2'!K13,T3_R1!L13,T3_R2!L13) -> 4839 | AX13: =MAX('MDA1'!L13,'MDA2'!L13,'MDA3'!J13,'MDA3'!M13,'T1'!N13,'T2'!L13,T3_R1!M13,T3_R2!M13) -> 7886 | AY13: 14192 | AZ13: =MAX('MDA2'!J13,T13) -> 1467 | BA13: =MAX('MDA1'!K13,'MDA2'!K13,'MDA3'!I13,'MDA3'!L13,V13,AD13) -> 4839 | BB13: =MAX('MDA1'!L13,'MDA2'!L13,'MDA3'!J13,'MDA3'!M13,AF13) -> 7886 | BC13: 14192 | BD13: 87.2173058
A14: =IF(COUNTRY_INFO!A14=0," ",COUNTRY_INFO!A14) -> STP | B14: =IF(COUNTRY_INFO!B14=0," ",COUNTRY_INFO!B14) -> ST | C14: =IF(COUNTRY_INFO!C14=0," ",COUNTRY_INFO!C14) -> Cauè | D14: =COUNTRY_INFO!L14 -> 7202 | E14: 3437 | F14: 3276 | G14: =MAX('MDA1'!M14,'MDA2'!M14) -> 6713 | H14: =IF(AND(COUNTRY_INFO!H14>0,COUNTRY_INFO!H14<4),IF(D14>MAX('MDA1'!M14,'MDA2'!M14),MAX('MDA1'!M14,'MDA2'!M14),D14),0) -> 6713 | I14: =IF(AND(COUNTRY_INFO!H14>0,COUNTRY_INFO!H14<4), IF(G14/D14*100<>0, IF(G14/D14*100>100,100,G14/D14*100), "-"),0) -> 93.21021938 | J14: =COUNTRY_INFO!M14 -> Non requis | M14: =MAX('MDA1'!M14,MAX('MDA3'!I14,'MDA3'!L14)+MAX('MDA3'!J14,'MDA3'!M14)) -> 0 | N14: =IF(AND(COUNTRY_INFO!I14>0,COUNTRY_INFO!I14<4),IF(J14>MAX('MDA1'!M14,MAX('MDA3'!I14,'MDA3'!L14)+MAX('MDA3'!J14,'MDA3'!M14)),MAX('MDA1'!M14,MAX('MDA3'!I14,'MDA3'!L14)+MAX('MDA3'!J14,'MDA3'!M14)),J14),0) -> 0 | O14: =IF(AND(COUNTRY_INFO!I14>0,COUNTRY_INFO!I14<4), IF(M14/J14*100<>0, IF(M14/J14*100>100,100,M14/J14*100), "-"),0) -> 0 | P14: =COUNTRY_INFO!N14 -> 2773 | Q14: 713 | R14: 695 | S14: =SUM(MAX('MDA2'!J14, 'T1'!L14, MAX(T3_R1!K14, T3_R2!K14)), MAX('MDA1'!K14, 'MDA2'!K14, 'T1'!M14, MAX(T3_R1!L14, T3_R2!L14)), MAX('MDA1'!L14, 'MDA2'!L14, 'T1'!N14, MAX(T3_R1!M14, T3_R2!M14))) -> 6713 | T14: =IF(AND(COUNTRY_INFO!J14>1,COUNTRY_INFO!J14<4),IF(COUNTRY_INFO!E14>MAX('MDA2'!J14,'T1'!L14,MAX(T3_R1!K14,T3_R2!K14)),MAX('MDA2'!J14,'T1'!L14,MAX(T3_R1!K14,T3_R2!K14)),COUNTRY_INFO!E14),0) -> 594 | U14: =IF(AND(COUNTRY_INFO!J14>1,COUNTRY_INFO!J14<4), IF(T14/COUNTRY_INFO!E14*100<>0, IF(T14/COUNTRY_INFO!E14*100>100,100,T14/COUNTRY_INFO!E14*100), "-"),0) -> 67.04288939 | V14: =IF(AND(COUNTRY_INFO!J14>1,COUNTRY_INFO!J14<4),IF(COUNTRY_INFO!F14>MAX('MDA1'!K14,'MDA2'!K14,'T1'!M14,MAX(T3_R1!L14,T3_R2!L14)),MAX('MDA1'!K14,'MDA2'!K14,'T1'!M14,MAX(T3_R1!L14,T3_R2!L14)),COUNTRY_INFO!F14),0) -> 1887 | W14: =IF(AND(COUNTRY_INFO!J14>1,COUNTRY_INFO!J14<4), IF(V14/COUNTRY_INFO!F14*100<>0, IF(V14/COUNTRY_INFO!F14*100>100,100,V14/COUNTRY_INFO!F14*100), "-"),0) -> 100 | X14: 2481 | Y14: =IF(AND(COUNTRY_INFO!J14>1,COUNTRY_INFO!J14<4), IF(S14/P14*100<>0, IF(X14/P14*100>100,100,X14/P14*100), "-"),0) -> 89.46988821 | Z14: =COUNTRY_INFO!O14 -> 622.71 | AC14: =MAX('T1'!L14,'T2'!J14)+MAX('T1'!M14,'T2'!K14)+MAX('T1'!N14,'T2'!L14) -> 0 | AD14: =IF(COUNTRY_INFO!K14=1,IF(COUNTRY_INFO!F14*0.33>MAX('T1'!M14,'T2'!K14),MAX('T1'!M14,'T2'!K14),COUNTRY_INFO!F14*0.33),IF(COUNTRY_INFO!K14=2,IF(COUNTRY_INFO!F14*0.5>MAX('T1'!M14,'T2'!K14),MAX('T1'!M14,'T2'!K14),COUNTRY_INFO!F14*0.5),IF(COUNTRY_INFO!K14=3,IF(COUNTRY_INFO!F14>MAX('T1'!M14,'T2'!K14),MAX('T1'!M14,'T2'!K14),COUNTRY_INFO!F14),0))) -> 0 | AE14: =IF(AND(COUNTRY_INFO!K14>0,COUNTRY_INFO!K14<4),IF(Z14>0,IF(COUNTRY_INFO!K14=1, AD14/(COUNTRY_INFO!F14*0.33)*100, IF(COUNTRY_INFO!K14=2, AD14/(COUNTRY_INFO!F14*0.5)*100, IF(COUNTRY_INFO!K14=3, AD14/COUNTRY_INFO!F14*100))),"-"),0) -> 0 | AF14: =IF(COUNTRY_INFO!K14=2,IF(COUNTRY_INFO!G14*0.2>MAX('T1'!N14,'T2'!L14),MAX('T1'!N14,'T2'!L14),COUNTRY_INFO!G14*0.2),IF(COUNTRY_INFO!K14=3,IF(COUNTRY_INFO!G14>MAX('T1'!N14,'T2'!L14),MAX('T1'!N14,'T2'!L14),COUNTRY_INFO!G14),0)) -> 0 | AG14: =IF(AND(COUNTRY_INFO!K14>0,COUNTRY_INFO!K14<4),IF(Z14>0,IF(COUNTRY_INFO!K14=1, 0, IF(COUNTRY_INFO!K14=2, AF14/(COUNTRY_INFO!G14*0.2)*100, IF(COUNTRY_INFO!K14=3, AF14/COUNTRY_INFO!G14*100))),"-"),0) -> 0 | AH14: 0 | AI14: =IF(AND(COUNTRY_INFO!K14>0,COUNTRY_INFO!K14<4), IF(AC14/Z14*100<>0, IF(AH14/Z14*100>100,100,AH14/Z14*100), "-"),0) -> - | AK14: =IF(AND(D14<>0, D14<>"Inconnu",D14<>"Interrompu",D14<>"Non requis"),D14/COUNTRY_INFO!D14, 0) -> 1 | AL14: =IF(AND(J14<>0,J14<>"Inconnu",J14<>"Interrompu",J14<>"Non requis"),J14/COUNTRY_INFO!D14, 0) -> 0 | AM14: =IF(AND(P14<>0,P14<>"Inconnu",P14<>"Non requis"),P14/(COUNTRY_INFO!E14+COUNTRY_INFO!F14), 0) -> 1 | AN14: =IF(AND(Z14<>0,Z14<>"Inconnu",Z14<>"Non requis"),IF(COUNTRY_INFO!K14=1,1,IF(COUNTRY_INFO!K14=2,0.5*COUNTRY_INFO!F14/(0.5*COUNTRY_INFO!F14+0.2*COUNTRY_INFO!G14),IF(COUNTRY_INFO!K14=3,COUNTRY_INFO!F14/(COUNTRY_INFO!F14+COUNTRY_INFO!G14)))),0) -> 1 | AO14: =IF(AND(Z14<>0,Z14<>"Inconnu",Z14<>"Non requis"),IF(COUNTRY_INFO!K14=1,0,IF(COUNTRY_INFO!K14=2,0.2*COUNTRY_INFO!G14/(0.5*COUNTRY_INFO!F14+0.2*COUNTRY_INFO!G14),IF(COUNTRY_INFO!K14=3,COUNTRY_INFO!G14/(COUNTRY_INFO!F14+COUNTRY_INFO!G14)))),0) -> 0 | AP14: =MAX(COUNTRY_INFO!D14*AK14*PROFILE!$G$7,COUNTRY_INFO!D14*AL14*PROFILE!$G$7) -> 230.3894759 | AQ14: =MAX(COUNTRY_INFO!D14*AK14*PROFILE!$G$8,COUNTRY_INFO!D14*AL14*PROFILE!$G$8,COUNTRY_INFO!D14*AM14*PROFILE!$G$8) -> 885.8305812 | AR14: =MAX(COUNTRY_INFO!D14*AK14*PROFILE!$G$9,COUNTRY_INFO!D14*AL14*PROFILE!$G$9,COUNTRY_INFO!D14*AM14*PROFILE!$G$9,IF(AND(DISTRICT!Z14<>"Inconnu",Z14<>"Non requis"),COUNTRY_INFO!O14*DISTRICT!AN14,0)) -> 1886.945129 | AS14: =MAX(COUNTRY_INFO!D14*AK14*PROFILE!$G$10,COUNTRY_INFO!D14*AL14*PROFILE!$G$10,IF(AND(DISTRICT!Z14<>"Inconnu",Z14<>"Non requis"),COUNTRY_INFO!O14*DISTRICT!AO14,0)) -> 4198.834813 | AT14: 7202 | AU14: 0 | AV14: =MAX('MDA2'!J14,'T1'!L14,'T2'!J14,T3_R1!K14,T3_R2!K14) -> 594 | AW14: =MAX('MDA1'!K14,'MDA2'!K14,'MDA3'!I14,'MDA3'!L14,'T1'!M14,'T2'!K14,T3_R1!L14,T3_R2!L14) -> 2045 | AX14: =MAX('MDA1'!L14,'MDA2'!L14,'MDA3'!J14,'MDA3'!M14,'T1'!N14,'T2'!L14,T3_R1!M14,T3_R2!M14) -> 4074 | AY14: 6713 | AZ14: =MAX('MDA2'!J14,T14) -> 594 | BA14: =MAX('MDA1'!K14,'MDA2'!K14,'MDA3'!I14,'MDA3'!L14,V14,AD14) -> 2045 | BB14: =MAX('MDA1'!L14,'MDA2'!L14,'MDA3'!J14,'MDA3'!M14,AF14) -> 4074 | BC14: 6713 | BD14: 93.21021938
A15: =IF(COUNTRY_INFO!A15=0," ",COUNTRY_INFO!A15) -> STP | B15: =IF(COUNTRY_INFO!B15=0," ",COUNTRY_INFO!B15) -> Principe | C15: =IF(COUNTRY_INFO!C15=0," ",COUNTRY_INFO!C15) -> Píncipe | D15: =COUNTRY_INFO!L15 -> 8418 | E15: 4079 | F15: 3853 | G15: =MAX('MDA1'!M15,'MDA2'!M15) -> 7932 | H15: =IF(AND(COUNTRY_INFO!H15>0,COUNTRY_INFO!H15<4),IF(D15>MAX('MDA1'!M15,'MDA2'!M15),MAX('MDA1'!M15,'MDA2'!M15),D15),0) -> 7932 | I15: =IF(AND(COUNTRY_INFO!H15>0,COUNTRY_INFO!H15<4), IF(G15/D15*100<>0, IF(G15/D15*100>100,100,G15/D15*100), "-"),0) -> 94.22665716 | J15: =COUNTRY_INFO!M15 -> Non requis | M15: =MAX('MDA1'!M15,MAX('MDA3'!I15,'MDA3'!L15)+MAX('MDA3'!J15,'MDA3'!M15)) -> 0 | N15: =IF(AND(COUNTRY_INFO!I15>0,COUNTRY_INFO!I15<4),IF(J15>MAX('MDA1'!M15,MAX('MDA3'!I15,'MDA3'!L15)+MAX('MDA3'!J15,'MDA3'!M15)),MAX('MDA1'!M15,MAX('MDA3'!I15,'MDA3'!L15)+MAX('MDA3'!J15,'MDA3'!M15)),J15),0) -> 0 | O15: =IF(AND(COUNTRY_INFO!I15>0,COUNTRY_INFO!I15<4), IF(M15/J15*100<>0, IF(M15/J15*100>100,100,M15/J15*100), "-"),0) -> 0 | P15: =COUNTRY_INFO!N15 -> 3241 | Q15: 972 | R15: 945 | S15: =SUM(MAX('MDA2'!J15, 'T1'!L15, MAX(T3_R1!K15, T3_R2!K15)), MAX('MDA1'!K15, 'MDA2'!K15, 'T1'!M15, MAX(T3_R1!L15, T3_R2!L15)), MAX('MDA1'!L15, 'MDA2'!L15, 'T1'!N15, MAX(T3_R1!M15, T3_R2!M15))) -> 7932 | T15: =IF(AND(COUNTRY_INFO!J15>1,COUNTRY_INFO!J15<4),IF(COUNTRY_INFO!E15>MAX('MDA2'!J15,'T1'!L15,MAX(T3_R1!K15,T3_R2!K15)),MAX('MDA2'!J15,'T1'!L15,MAX(T3_R1!K15,T3_R2!K15)),COUNTRY_INFO!E15),0) -> 810 | U15: =IF(AND(COUNTRY_INFO!J15>1,COUNTRY_INFO!J15<4), IF(T15/COUNTRY_INFO!E15*100<>0, IF(T15/COUNTRY_INFO!E15*100>100,100,T15/COUNTRY_INFO!E15*100), "-"),0) -> 78.26086957 | V15: =IF(AND(COUNTRY_INFO!J15>1,COUNTRY_INFO!J15<4),IF(COUNTRY_INFO!F15>MAX('MDA1'!K15,'MDA2'!K15,'T1'!M15,MAX(T3_R1!L15,T3_R2!L15)),MAX('MDA1'!K15,'MDA2'!K15,'T1'!M15,MAX(T3_R1!L15,T3_R2!L15)),COUNTRY_INFO!F15),0) -> 2206 | W15: =IF(AND(COUNTRY_INFO!J15>1,COUNTRY_INFO!J15<4), IF(V15/COUNTRY_INFO!F15*100<>0, IF(V15/COUNTRY_INFO!F15*100>100,100,V15/COUNTRY_INFO!F15*100), "-"),0) -> 100 | X15: 3016 | Y15: =IF(AND(COUNTRY_INFO!J15>1,COUNTRY_INFO!J15<4), IF(S15/P15*100<>0, IF(X15/P15*100>100,100,X15/P15*100), "-"),0) -> 93.05769824 | Z15: =COUNTRY_INFO!O15 -> 727.98 | AC15: =MAX('T1'!L15,'T2'!J15)+MAX('T1'!M15,'T2'!K15)+MAX('T1'!N15,'T2'!L15) -> 0 | AD15: =IF(COUNTRY_INFO!K15=1,IF(COUNTRY_INFO!F15*0.33>MAX('T1'!M15,'T2'!K15),MAX('T1'!M15,'T2'!K15),COUNTRY_INFO!F15*0.33),IF(COUNTRY_INFO!K15=2,IF(COUNTRY_INFO!F15*0.5>MAX('T1'!M15,'T2'!K15),MAX('T1'!M15,'T2'!K15),COUNTRY_INFO!F15*0.5),IF(COUNTRY_INFO!K15=3,IF(COUNTRY_INFO!F15>MAX('T1'!M15,'T2'!K15),MAX('T1'!M15,'T2'!K15),COUNTRY_INFO!F15),0))) -> 0 | AE15: =IF(AND(COUNTRY_INFO!K15>0,COUNTRY_INFO!K15<4),IF(Z15>0,IF(COUNTRY_INFO!K15=1, AD15/(COUNTRY_INFO!F15*0.33)*100, IF(COUNTRY_INFO!K15=2, AD15/(COUNTRY_INFO!F15*0.5)*100, IF(COUNTRY_INFO!K15=3, AD15/COUNTRY_INFO!F15*100))),"-"),0) -> 0 | AF15: =IF(COUNTRY_INFO!K15=2,IF(COUNTRY_INFO!G15*0.2>MAX('T1'!N15,'T2'!L15),MAX('T1'!N15,'T2'!L15),COUNTRY_INFO!G15*0.2),IF(COUNTRY_INFO!K15=3,IF(COUNTRY_INFO!G15>MAX('T1'!N15,'T2'!L15),MAX('T1'!N15,'T2'!L15),COUNTRY_INFO!G15),0)) -> 0 | AG15: =IF(AND(COUNTRY_INFO!K15>0,COUNTRY_INFO!K15<4),IF(Z15>0,IF(COUNTRY_INFO!K15=1, 0, IF(COUNTRY_INFO!K15=2, AF15/(COUNTRY_INFO!G15*0.2)*100, IF(COUNTRY_INFO!K15=3, AF15/COUNTRY_INFO!G15*100))),"-"),0) -> 0 | AH15: 0 | AI15: =IF(AND(COUNTRY_INFO!K15>0,COUNTRY_INFO!K15<4), IF(AC15/Z15*100<>0, IF(AH15/Z15*100>100,100,AH15/Z15*100), "-"),0) -> - | AK15: =IF(AND(D15<>0, D15<>"Inconnu",D15<>"Interrompu",D15<>"Non requis"),D15/COUNTRY_INFO!D15, 0) -> 1 | AL15: =IF(AND(J15<>0,J15<>"Inconnu",J15<>"Interrompu",J15<>"Non requis"),J15/COUNTRY_INFO!D15, 0) -> 0 | AM15: =IF(AND(P15<>0,P15<>"Inconnu",P15<>"Non requis"),P15/(COUNTRY_INFO!E15+COUNTRY_INFO!F15), 0) -> 1 | AN15: =IF(AND(Z15<>0,Z15<>"Inconnu",Z15<>"Non requis"),IF(COUNTRY_INFO!K15=1,1,IF(COUNTRY_INFO!K15=2,0.5*COUNTRY_INFO!F15/(0.5*COUNTRY_INFO!F15+0.2*COUNTRY_INFO!G15),IF(COUNTRY_INFO!K15=3,COUNTRY_INFO!F15/(COUNTRY_INFO!F15+COUNTRY_INFO!G15)))),0) -> 1 | AO15: =IF(AND(Z15<>0,Z15<>"Inconnu",Z15<>"Non requis"),IF(COUNTRY_INFO!K15=1,0,IF(COUNTRY_INFO!K15=2,0.2*COUNTRY_INFO!G15/(0.5*COUNTRY_INFO!F15+0.2*COUNTRY_INFO!G15),IF(COUNTRY_INFO!K15=3,COUNTRY_INFO!G15/(COUNTRY_INFO!F15+COUNTRY_INFO!G15)))),0) -> 0 | AP15: =MAX(COUNTRY_INFO!D15*AK15*PROFILE!$G$7,COUNTRY_INFO!D15*AL15*PROFILE!$G$7) -> 269.2888931 | AQ15: =MAX(COUNTRY_INFO!D15*AK15*PROFILE!$G$8,COUNTRY_INFO!D15*AL15*PROFILE!$G$8,COUNTRY_INFO!D15*AM15*PROFILE!$G$8) -> 1035.395978 | AR15: =MAX(COUNTRY_INFO!D15*AK15*PROFILE!$G$9,COUNTRY_INFO!D15*AL15*PROFILE!$G$9,COUNTRY_INFO!D15*AM15*PROFILE!$G$9,IF(AND(DISTRICT!Z15<>"Inconnu",Z15<>"Non requis"),COUNTRY_INFO!O15*DISTRICT!AN15,0)) -> 2205.540697 | AS15: =MAX(COUNTRY_INFO!D15*AK15*PROFILE!$G$10,COUNTRY_INFO!D15*AL15*PROFILE!$G$10,IF(AND(DISTRICT!Z15<>"Inconnu",Z15<>"Non requis"),COUNTRY_INFO!O15*DISTRICT!AO15,0)) -> 4907.774432 | AT15: 8418 | AU15: 0 | AV15: =MAX('MDA2'!J15,'T1'!L15,'T2'!J15,T3_R1!K15,T3_R2!K15) -> 810 | AW15: =MAX('MDA1'!K15,'MDA2'!K15,'MDA3'!I15,'MDA3'!L15,'T1'!M15,'T2'!K15,T3_R1!L15,T3_R2!L15) -> 2264 | AX15: =MAX('MDA1'!L15,'MDA2'!L15,'MDA3'!J15,'MDA3'!M15,'T1'!N15,'T2'!L15,T3_R1!M15,T3_R2!M15) -> 4858 | AY15: 7932 | AZ15: =MAX('MDA2'!J15,T15) -> 810 | BA15: =MAX('MDA1'!K15,'MDA2'!K15,'MDA3'!I15,'MDA3'!L15,V15,AD15) -> 2264 | BB15: =MAX('MDA1'!L15,'MDA2'!L15,'MDA3'!J15,'MDA3'!M15,AF15) -> 4858 | BC15: 7932 | BD15: 94.22665716

Sheet SUMMARY
B2: Formulaire de Rapport Commun v.3.1
B4: Pays | D4: =IF(INTRO!$E$34<>0,INTRO!$E$34," ") -> STP | G4: Année | H4: =IF(INTRO!$E$36<>0,INTRO!$E$36," ") -> 2018
B6: Les autorités nationales sont priées de compléter ce formulaire de rapport commun et de le soumettre à l'Organisation mondiale de la Santé avant le 15 août de l'année en cours pour rapporter les données des activités de chimioprévention mises en oeuvre l'année précédente.
B14: Nombre de personnes ayant reçu un traitement (au moins une fois) pour les maladies
E16: EAPréS | F16: EAS | G16: Adultes | H16: Total
B17: Filariose lymphatique | E17: 16561 | F17: 55654 | G17: 90297 | H17: =SUM(E17:G17) -> 162512
B18: Onchocercose | E18: Non admissible | F18: 0 | G18: 0 | H18: =SUM(E18:G18) -> 0
B19: Géohelminthiases | E19: 16561 | F19: 55654 | G19: 90297 | H19: =SUM(E19:G19) -> 162512
B20: Schistosomiase | E20: Non ciblé | F20: 22803 | G20: 0 | H20: =SUM(E20:G20) -> 22803
B22: Couverture des interventions de CP contre les maladies (%)
G24: Géographique | H24: National
B25: Filariose lymphatique | G25: 100 | H25: 80.53760457
B26: Onchocercose | G26: 0 | H26: 0
B27: Géohelminthiases | G27: 100 | H27: 88.65575965
B28: Schistosomiase | G28: 28.57142857 | H28: 44.12295825
B30: Nombre de personnes traitées et couverture du programme en pourcentage, par intervention de CP
D32: EAPréS | E32: EAS | F32: Adultes | G32: Total | H32: Couverture
B33: MDA 1 (IVM+ALB) | D33: Non admissible | E33: ='MDA1'!$K$4 -> 0 | F33: ='MDA1'!$L$4 -> 0 | G33: ='MDA1'!$M$4 -> 0 | H33: ='MDA1'!$Q$4 -> 
B34: MDA 2 (DEC+ALB) | D34: ='MDA2'!$J$4 -> 16561 | E34: ='MDA2'!$K$4 -> 55654 | F34: ='MDA2'!$L$4 -> 90297 | G34: ='MDA2'!$M$4 -> 162512 | H34: ='MDA2'!$Q$4 -> 86.34888449
B35: MDA 3 (IVM) | D35: Non admissible | E35: ='MDA3'!$O$4 -> 0 | F35: ='MDA3'!$P$4 -> 0 | G35: ='MDA3'!$Q$4 -> 0 | H35: ='MDA3'!$T$4 -> 
B36: T 1 (PZQ+ALB/MBD) | D36: =IF('T1'!$L$4<>0,'T1'!$L$4,"Non ciblé") -> Non ciblé | E36: ='T1'!$M$4 -> 22803 | F36: =IF('T1'!$N$4<>0,'T1'!$N$4,"Non ciblé") -> Non ciblé | G36: ='T1'!$O$4 -> 22803 | H36: ='T1'!$S$4 -> 94.90178126
B37: T 2 (PZQ) | D37: =IF('T2'!$J$4<>0,'T2'!$J$4,"Non ciblé") -> Non ciblé | E37: ='T2'!$K$4 -> 0 | F37: ='T2'!$L$4 -> 0 | G37: ='T2'!$M$4 -> 0 | H37: ='T2'!$Q$4 -> 
B38: T 3 (ALB/MBD) - tournée 1 | D38: =T3_R1!$K$4 -> 0 | E38: =T3_R1!$L$4 -> 13210 | F38: =IF(T3_R1!$M$4<>0,T3_R1!$M$4,"Non ciblé") -> Non ciblé | G38: =T3_R1!$N$4 -> 13210 | H38: =T3_R1!$R$4 -> 92.44873679
B39: T 3 (ALB/MBD) - tournée 2 | D39: =T3_R2!$K$4 -> 0 | E39: =T3_R2!$L$4 -> 0 | F39: =IF(T3_R2!$M$4<>0,T3_R2!$M$4,"Non ciblé") -> Non ciblé | G39: =T3_R2!$N$4 -> 0 | H39: =T3_R2!$R$4 -> 
B41: Inventaire des médicaments pour la chimiothérapie préventive dans le pays
C43: IVM | D43: DEC | E43: ALB (FL) | F43: ALB (STH) | G43: MBD | H43: PZQ
B44: Disponible
B45: Distribué
B46: Gaspillé
B47: Reçus
B48: Restant | C48: =C44-C45-C46+C47 -> 0 | D48: 0 | E48: 0 | F48: 0 | G48: 0 | H48: 0
B50: Veuillez indiquer le médicament qui a été utilisé pour traiter les EAPréS, et les mécanismes de distribution
B51: Médicament | D51: Mécanismes de distribution | G51: Source
B53: Remarques supplémentaires évenuelles concernant le rapport
B63: J’ai pris connaissance et accepté la politique de la communication de données de l’OMS
B64: Nom et signature du Coordonnateur MTN ou du Représentant du Ministère de la Santé : | E64: Alzira Segunda silva do Rosário
E65: 16 de Agosto 2019
B66: Date:
B68: Veuillez envoyer le rapport national (signé et sous format électronique) au représentant de l'OMS du pays en mettant en copie :
B70: Siège de l'OMS | D70: PC_JointForms@who.int
B71: Bureau régional de l'OMS | D71: Conseiller régional MTN

Sheet PROFILE (hidden)
B2: Formulaire de Rapport Commun v.3.1 - CP
B4: Pays | D4: =IF(INTRO!$E$34<>0,INTRO!$E$34," ") -> STP | G4: Année | H4: =IF(INTRO!$E$36<>0,INTRO!$E$36," ") -> 2018
B5: !!! ATTENTION !!! Avant d’analyser les données dans le profil du pays, merci de vous assurer que le rapport dans l’onglet SUMMARY est bien mis à jour
B6: Population totale | G6: 1 | H6: =COUNTRY_INFO!D4 -> 201784
B7: Population — autres groupes d’âge | G7: =IF($H$6<>0,H7/$H$6,0) -> 0.0319896523 | H7: =H6-SUM(H8:H10) -> 6455
B8: Population — EAPréS | E8: =INTRO!B48 -> 1-4 ans | G8: =IF($H$6<>0,H8/$H$6,0) -> 0.1229978591 | H8: =COUNTRY_INFO!E4 -> 24819
B9: Population — EAS | E9: =INTRO!B49 -> 5-14 ans | G9: =IF($H$6<>0,H9/$H$6,0) -> 0.2620029338 | H9: =COUNTRY_INFO!F4 -> 52868
B10: Population — Adults | E10: =INTRO!B50 -> 15 ans et plus | G10: 0.5830095548 | H10: =COUNTRY_INFO!G4 -> 117642
B12: Nombre total d’individus nécessitant une CP pour au moins une des maladies (FL, Oncho, STH, SCH) | H12: =DISTRICT!AT6 -> 201784
B13: Proportion du nombre d’individus nécessitant un CP pour au moins une maladie parmi la population totale | H13: =IF(H6<>0,H12/H6,0) -> 1
B14: Nombre d’UMOs nécessitant une CP pour au moins une des maladies (FL, Oncho, STH, SCH) | H14: =COUNTIF(DISTRICT!AT9:AT1000,">0") -> 7
B15: Nombre d’UMOs ayant reçu une CP pour au moins une des maladies (FL, Oncho, STH, SCH) | H15: =COUNTIF(DISTRICT!AY9:AY1000,">0") -> 7
B16: Proportion d’UMOs nécessitant une CP pour au moins une maladie et l’ayant reçue | H16: =IF(H14<>0,H15/H14,0) -> 1
B17: Nombre total d’individus ayant été traités pour au moins une maladie (FL, Oncho, STH, SCH) | H17: =DISTRICT!AY6 -> 162512
B18: Nombre total d’individus nécessitant un traitement ayant reçu une CP pour au moins une maladie (FL, Oncho, STH, SCH) | H18: =DISTRICT!BC6 -> 162512
B19: Couverture CP pour au moins une maladie (FL, Oncho, STH, SCH) | H19: =DISTRICT!BD6 -> 0.8053760457
B20: Nombre d’UMOs ayant été traitées pour toutes les maladies nécessitant une CP dans ces unités | H20: =DISTRICT!AU6 -> 2
B21: Population nécessitant une CP dans des UMOs qui ont été traitées pour toutes les maladies requérant une CP | H21: =SUMIF(DISTRICT!AU9:AU1000,"Y",DISTRICT!AT9:AT1000) -> 128510
B22: Population ayant reçu une CP dans des UMOs qui ont été traitées pour toutes les maladies nécessitant une CP | H22: =SUMIF(DISTRICT!AU9:AU1000,"Y",DISTRICT!AY9:AY1000) -> 100249
E24: FL | F24: ONCHO | G24: STH | H24: SCH
B26: Maladies nécessitant une CP dans la pays | E26: =IF(INTRO!E38="Endémique","Yes","No") -> Yes | F26: =IF(INTRO!E40="Endémique","Yes","No") -> No | G26: =IF(INTRO!E42="Endémique","Yes","No") -> Yes | H26: =IF(INTRO!E44="Endémique","Yes","No") -> Yes
B27: Nombre d’UMOs dans le pays | E27: =IF(E26="Yes",INTRO!$E$46,"-") -> 7 | F27: =IF(F26="Yes",INTRO!$E$46,"-") -> - | G27: =IF(G26="Yes",INTRO!$E$46,"-") -> 7 | H27: =IF(H26="Yes",INTRO!$E$46,"-") -> 7
B28: Nombre d’UMOs dont le statut d’endémicité est connu | E28: =IF(E26="Yes",E27-E29,"-") -> 7 | F28: =IF(F26="Yes",F27-F29,"-") -> - | G28: =IF(G26="Yes",G27-G29,"-") -> 7 | H28: =IF(H26="Yes",H27-H29,"-") -> 7
B29: Nombre d’UMOs dont le statut d’endémicité est inconnu | E29: =IF(E26="Yes",E27-(992-COUNTIF(COUNTRY_INFO!H$9:H$1000,""))+COUNTIF(COUNTRY_INFO!H$9:H$1000,"=4"),"-") -> 0 | F29: =IF(F26="Yes",F27-(992-COUNTIF(COUNTRY_INFO!I$9:I$1000,""))+COUNTIF(COUNTRY_INFO!I$9:I$1000,"=4"),"-") -> - | G29: =IF(G26="Yes",G27-(992-COUNTIF(COUNTRY_INFO!J$9:J$1000,""))+COUNTIF(COUNTRY_INFO!J$9:J$1000,"=4")+COUNTIF(COUNTRY_INFO!J$9:J$1000,"=5"),"-") -> 0 | H29: =IF(H26="Yes",H27-(992-COUNTIF(COUNTRY_INFO!K$9:K$1000,""))+COUNTIF(COUNTRY_INFO!K$9:K$1000,"=4")+COUNTIF(COUNTRY_INFO!K$9:K$1000,"=5"),"-") -> 0
B30: Nombre d’UMOs non-endémiques | E30: =IF(E26="Yes",COUNTIF(COUNTRY_INFO!H$9:H$1000,"=0"),"-") -> 0 | F30: =IF(F26="Yes",COUNTIF(COUNTRY_INFO!I$9:I$1000,"=0"),"-") -> - | G30: =IF(G26="Yes",COUNTIF(COUNTRY_INFO!J$9:J$1000,"=0"),"-") -> 0 | H30: =IF(H26="Yes",COUNTIF(COUNTRY_INFO!K$9:K$1000,"=0"),"-") -> 0
B31: Nombre d’UMOs nécessitant une CP (total) | E31: =COUNTIF(COUNTRY_INFO!H$9:H$1000,"=1") -> 7 | F31: =COUNTIF(COUNTRY_INFO!I$9:I$1000,"=1") -> 0 | G31: =SUM(G33:G34) -> 7 | H31: =SUM(H32:H34) -> 7
D32: prevalence basse | G32: =COUNTIF(COUNTRY_INFO!J$9:J$1000,"=1") -> 0 | H32: =COUNTIF(COUNTRY_INFO!K$9:K$1000,"=1") -> 5
D33: prevalence modérée | G33: =COUNTIF(COUNTRY_INFO!J$9:J$1000,"=2") -> 0 | H33: =COUNTIF(COUNTRY_INFO!K$9:K$1000,"=2") -> 2
D34: prevalence haute | G34: =COUNTIF(COUNTRY_INFO!J$9:J$1000,"=3") -> 7 | H34: =COUNTIF(COUNTRY_INFO!K$9:K$1000,"=3") -> 0
B35: Population nécessitant une CP dans le pays (total) | E35: =COUNTRY_INFO!L4 -> 201784 | F35: =COUNTRY_INFO!M4 -> 0 | G35: =COUNTRY_INFO!N4 -> 77687 | H35: =COUNTRY_INFO!O4 -> 38154.74
C36: EAPréS | D36: prevalence modérée | G36: =SUMIF(COUNTRY_INFO!J$9:J$1000,"=2",COUNTRY_INFO!E$9:E$1000) -> 0
D37: prevalence haute | G37: =SUMIF(COUNTRY_INFO!J$9:J$1000,"=3",COUNTRY_INFO!E$9:E$1000) -> 24819
C38: EAS | D38: prevalence basse | H38: =SUMIF(COUNTRY_INFO!K$9:K$1000,"=1",COUNTRY_INFO!F$9:F$1000)*0.33 -> 6335.34
D39: prevalence modérée | G39: =SUMIF(COUNTRY_INFO!J$9:J$1000,"=2",COUNTRY_INFO!F$9:F$1000) -> 0 | H39: =SUMIF(COUNTRY_INFO!K$9:K$1000,"=2",COUNTRY_INFO!F$9:F$1000)*0.5 -> 16835
D40: prevalence haute | G40: =SUMIF(COUNTRY_INFO!J$9:J$1000,"=3",COUNTRY_INFO!F$9:F$1000) -> 52868 | H40: =SUMIF(COUNTRY_INFO!K$9:K$1000,"=3",COUNTRY_INFO!F$9:F$1000) -> 0
C41: Adults | D41: prevalence modérée | H41: =SUMIF(COUNTRY_INFO!K$9:K$1000,"=2",COUNTRY_INFO!G$9:G$1000)*0.2 -> 14984.4
D42: prevalence haute | H42: =SUMIF(COUNTRY_INFO!K$9:K$1000,"=3",COUNTRY_INFO!G$9:G$1000) -> 0
B43: Nombre d’UMOs où une CP a été mise en oeuvre (total) | E43: =COUNTIF(DISTRICT!G$9:G$1000,">0") -> 7 | F43: =COUNTIF(DISTRICT!M$9:M$1000,">0") -> 0 | G43: =COUNTIF(DISTRICT!S$9:S$1000,">0") -> 7 | H43: =COUNTIF(DISTRICT!AC$9:AC$1000,">0") -> 2
B44: Nombre d’UMOs nécessitant une CP et où elle a été mise en oeuvre | E44: =COUNTIF(DISTRICT!H$9:H$1000,">0") -> 7 | F44: =COUNTIF(DISTRICT!N$9:N$1000,">0") -> 0 | G44: =COUNTIF(DISTRICT!X$9:X$1000,">0") -> 7 | H44: =COUNTIF(DISTRICT!AH$9:AH$1000,">0") -> 2
C45: EAPréS | G45: =COUNTIF(DISTRICT!T$9:T$1000,">0") -> 7
C46: EAS | G46: =COUNTIF(DISTRICT!V$9:V$1000,">0") -> 7 | H46: =COUNTIF(DISTRICT!AD$9:AD$1000,">0") -> 2
C47: Adults | H47: =COUNTIF(DISTRICT!AF$9:AF$1000,">0") -> 0
B48: Nombre d’individus traités (total) | E48: =DISTRICT!G4 -> 162512 | F48: =DISTRICT!M4 -> 0 | G48: =DISTRICT!S4 -> 162512 | H48: =DISTRICT!AC4 -> 22803
C49: EAPréS | E49: =SUMMARY!$E17 -> 16561 | F49: =SUMMARY!$E18 -> Non admissible | G49: =SUMMARY!$E19 -> 16561 | H49: =SUMMARY!$E20 -> Non ciblé
C50: EAS | E50: =SUMMARY!$F17 -> 55654 | F50: =SUMMARY!$F18 -> 0 | G50: =SUMMARY!$F19 -> 55654 | H50: =SUMMARY!$F20 -> 22803
C51: Adults | E51: =SUMMARY!$G17 -> 90297 | F51: =SUMMARY!$G18 -> 0 | G51: =SUMMARY!$G19 -> 90297 | H51: =SUMMARY!$G20 -> 0
B52: Nombre d’individus nécessitant CP et traités (total) | E52: =DISTRICT!H4 -> 162512 | F52: =DISTRICT!N4 -> 0 | G52: =DISTRICT!X4 -> 68874 | H52: =DISTRICT!AH4 -> 16835
C53: EAPréS | G53: =DISTRICT!T4 -> 16561
C54: EAS | G54: =DISTRICT!V4 -> 52313 | H54: =DISTRICT!AD4 -> 16835
C55: Adults | H55: =DISTRICT!AF4 -> 0
B56: Couverture géographique (tous âges) | E56: =IF(E31<>0,E44/E31,0) -> 1 | F56: =IF(F31<>0,F44/F31,0) -> 0 | G56: =IF(G31<>0,G44/G31,0) -> 1 | H56: =IF(H31<>0,H44/H31,0) -> 0.2857142857
C57: EAPréS | G57: =IF(G31<>0,G45/G31,0) -> 1
C58: EAS | G58: =IF(G31<>0,G46/G31,0) -> 1 | H58: =IF(H31<>0,H46/H31,0) -> 0.2857142857
C59: Adults | H59: =IF(SUM(H33:H34)<>0,H47/SUM(H33:H34),0) -> 0
B60: Couverture nationale (total) | E60: =IF(E35<>0,E52/E35,0) -> 0.8053760457 | F60: =IF(F35<>0,F52/F35,0) -> 0 | G60: =IF(G35<>0,G52/G35,0) -> 0.8865575965 | H60: =IF(H35<>0,H52/H35,0) -> 0.4412295825
C61: EAPréS | G61: =IF(SUM(G36:G37)<>0,G53/SUM(G36:G37),0) -> 0.6672710423
C62: EAS | G62: =IF(SUM(G39:G40)<>0,G54/SUM(G39:G40),0) -> 0.9895021563 | H62: =IF(SUM(H38:H40)<>0,H54/SUM(H38:H40),0) -> 0.7265754408
C63: Adults | H63: =IF(SUM(H41:H42)<>0,H55/SUM(H41:H42),0) -> 0
E64: FL | F64: ONCHO | G64: STH | H64: SCH
B66: Nombre d’UMOs ayant réalisé une couverture efficace (tous âges) | E66: =COUNTIF(DISTRICT!I$9:I$1000,">=65") -> 7 | F66: =COUNTIF(DISTRICT!O$9:O$1000,">=65") -> 0 | G66: =COUNTIF(DISTRICT!Y$9:Y$1000,">=75") -> 7 | H66: =COUNTIF(DISTRICT!AI$9:AI$1000,">=75") -> 0
C67: EAPréS | G67: =COUNTIF(DISTRICT!U$9:U$1000,">=75") -> 1
C68: EAS | G68: =COUNTIF(DISTRICT!W$9:W$1000,">=75") -> 7 | H68: =COUNTIF(DISTRICT!AE$9:AE$1000,">=75") -> 2
C69: Adults | H69: =COUNTIF(DISTRICT!AG$9:AG$1000,">=75") -> 0
B70: Nombre d’individus nécessitant un traitement dans des UMOs ayant réalisé une couverture efficace (total) | E70: =SUMIF(DISTRICT!I9:I1000,">=65",DISTRICT!H9:H1000) -> 162512 | F70: =SUMIF(DISTRICT!O9:O1000,">=65",DISTRICT!N9:N1000) -> 0 | G70: =SUMIF(DISTRICT!Y9:Y1000,">=75",DISTRICT!X9:X1000) -> 68874 | H70: =SUMIF(DISTRICT!AI9:AI1000,">=75",DISTRICT!AH9:AH1000) -> 0
C71: EAPréS | G71: =SUMIF(DISTRICT!U9:U1000,">=75",DISTRICT!T9:T1000) -> 810
C72: EAS | G72: =SUMIF(DISTRICT!W9:W1000,">=75",DISTRICT!V9:V1000) -> 52313 | H72: =SUMIF(DISTRICT!AE9:AE1000,">=75",DISTRICT!AD9:AD1000) -> 16835
C73: Adults | H73: =SUMIF(DISTRICT!AG9:AG1000,">=75",DISTRICT!AF9:AF1000) -> 0
B74: Proportion d’UMOs nécessitant une CP and ayant réalisé une couverture efficace (total) | E74: =IF(E44<>0,E66/E44,0) -> 1 | F74: =IF(F44<>0,F66/F44,0) -> 0 | G74: =IF(G44<>0,G66/G44,0) -> 1 | H74: =IF(H44<>0,H66/H44,0) -> 0
C75: EAPréS | G75: =IF(G45<>0,G67/G45,0) -> 0.1428571429
C76: EAS | G76: =IF(G46<>0,G68/G46,0) -> 1 | H76: =IF(H46<>0,H68/H46,0) -> 1
C77: Adults | H77: =IF(H47<>0,H69/H47,0) -> 0
B78: Nombre d’UMOs où la CP a été stoppée (càd sous surveillance) | E78: =COUNTIF(COUNTRY_INFO!H$9:H$1000,"=99") -> 0 | F78: =COUNTIF(COUNTRY_INFO!I$9:I$1000,"=99") -> 0
B79: Nombre d’individus dans les UMOs ne nécessitant plus de CP (stoppée) | E79: =SUMIF(COUNTRY_INFO!H$9:H$1000,"=99",COUNTRY_INFO!D$9:D$1000) -> 0 | F79: =SUMIF(COUNTRY_INFO!I$9:I$1000,"=99",COUNTRY_INFO!D$9:D$1000) -> 0
B80: Nombre d’individus nécessitant une CP vivants dans des UMOs ciblées pour la CP | E80: =SUMIF(DISTRICT!H$9:H$1000,">0",DISTRICT!D$9:D$1000) -> 201784 | F80: =SUMIF(DISTRICT!N$9:N$1000,">0",DISTRICT!J$9:J$1000) -> 0 | G80: =SUMIF(DISTRICT!X$9:X$1000,">0",DISTRICT!P$9:P$1000) -> 77687 | H80: =SUMIF(DISTRICT!AH$9:AH$1000,">0",DISTRICT!Z$9:Z$1000) -> 31819.4
B81: Nombre d’individus nécessitant une CP vivant dans des UMOs non ciblées pour la CP | E81: =SUMIF(DISTRICT!H$9:H$1000,"=0",DISTRICT!D$9:D$1000) -> 0 | F81: =SUMIF(DISTRICT!N$9:N$1000,"=0",DISTRICT!J$9:J$1000) -> 0 | G81: =SUMIF(DISTRICT!X$9:X$1000,"=0",DISTRICT!P$9:P$1000) -> 0 | H81: =SUMIF(DISTRICT!AH$9:AH$1000,"=0",DISTRICT!Z$9:Z$1000) -> 6335.34
E82: =E35-E52 -> 39272 | F82: =F35-F52 -> 0 | G82: 8813 | H82: 21319.74
B83: Nombre d’UMOs nécessitant et recevant la CP | E83: =E31-E44 -> 0 | F83: =F31-F44 -> 0 | G83: 0 | H83: 5
E84: =E27-E31-E29 -> 0 | G84: 0 | H84: =H27-H31-H29 -> 0
G86: Nécessitant et recevant une CP
G87: Nécessitant mais ne recevant pas de CP
G88: Ne nécessitant pas de CP
G89: Statut inconnu
B124: Cliquer ici pour accéder au portail des données de la CP

Sheet DATA_POLICY (hidden)
B2: Formulaire de Rapport Commun v.3.1
B4: Pays | D4: =IF(INTRO!$E$34<>0,INTRO!$E$34," ") -> STP | G4: Année | H4: =IF(INTRO!$E$36<>0,INTRO!$E$36," ") -> 2018
B7: Déclaration de principe sur la communication de données par l’OMS
B9: Les données sont le fondement de toutes les mesures rationnelles de santé publique et les avantages de la communication de données, y compris pour la science et la santé publique, sont largement reconnus. L’OMS souhaite promouvoir autant que possible la communication de données sanitaires, y compris, mais pas uniquement, de données épidémiologiques et de surveillance.
B14: ="À cet égard, et sans préjudice des instruments juridiquement contraignants régissant la communication et la publication d’informations, le Ministère de la santé de " & D4 & ", en fournissant des données à l’OMS :" -> À cet égard, et sans préjudice des instruments juridiquement contraignants régissant la communication et la publication d’informations, le Ministère de la santé de STP, en fournissant des données à l’OMS :
B18: confirme que toutes les données à fournir à l’OMS, ont été collectées conformément à la législation nationale applicable, y compris aux lois de protection des données visant à préserver l’anonymat des personnes identifiables ;
B23: ="convient que l’OMS aura le droit, toujours sous réserve des mesures visant à garantir l’utilisation éthique et sécurisée des données et toujours sous réserve d’une reconnaissance appropriée de la part de "&D4&":" -> convient que l’OMS aura le droit, toujours sous réserve des mesures visant à garantir l’utilisation éthique et sécurisée des données et toujours sous réserve d’une reconnaissance appropriée de la part de STP:
C27: de publier les données, dépourvues de tout élément d’identification personnelle (ci-après dénommées « les données ») et de les mettre à la disposition de toute partie intéressée, sur demande (dans la mesure où elles n’ont pas, ou pas encore, été publiées par l’OMS), selon des modalités autorisant leur utilisation non commerciale et sans but lucratif à des fins de santé publique (pour autant que l’OMS garde la maîtrise de la publication des données) ; d’utiliser, de compiler, d’agréger, d’évaluer et d’analyser les données et de publier et de diffuser les résultats obtenus grâce à ces données en rapport avec des travaux de l’OMS et conformément aux politiques et pratiques de l’Organisation.
B39: =CONCATENATE("Sauf lorsque des instruments juridiquement contraignants (RSI, Règlement de Nomenclature de l’OMS, de 1967, etc.) disposent que les données doivent être communiquées et publiées, le Ministère de la santé de ", D4," peut, pour certaines données, décider de ne pas appliquer (tout ou partie des) (les) dispositions qui précèdent," & " en informant l’OMS par écrit à l’adresse suivante, à condition que cette notification précise clairement les données, " & "dont il s’agit et indique clairement lesquelles des dispositions qui précèdent ne seront pas appliquées, et pour quels motifs.") -> Sauf lorsque des instruments juridiquement contraignants (RSI, Règlement de Nomenclature de l’OMS, de 1967, etc.) disposent que les données doivent être communiquées et publiées, le Ministère de la santé de STP peut, pour certaines données, décider de ne pas appliquer (tout ou partie des) (les) dispositions qui précèdent, en informant l’OMS par écrit à l’adresse suivante, à condition que cette notification précise clairement les données, dont il s’agit et indique clairement lesquelles des dispositions qui précèdent ne seront pas appliquées, et pour quels motifs.
